Publisher Label,Publisher URI,"Supplier","Net Amount £","Organisational Unit","Merchant Category Code","Purpose","Payment Date"
"Wolverhampton City Council","http://opendatacommunities.org/id/metropolitan-district-council/wolverhampton","AMZN Mktp UK M28SB5K14","6.63","Adoption and Residence Team & Allowances","5942","Books","31/12/2018"
"Wolverhampton City Council","http://opendatacommunities.org/id/metropolitan-district-council/wolverhampton","WWW.ICELAND.CO.UK","32.25","-","5411","Provisions (Not for resale)","31/12/2018"
"Wolverhampton City Council","http://opendatacommunities.org/id/metropolitan-district-council/wolverhampton","GOOGLE  ADS9680351324","500.00","Communications & Marketing - General","5968","Subscriptions","31/12/2018"
"Wolverhampton City Council","http://opendatacommunities.org/id/metropolitan-district-council/wolverhampton","LONDON BOROUGH OF NEWH","10.00","LAC Team","9399","Services - Fees and Charges","31/12/2018"
"Wolverhampton City Council","http://opendatacommunities.org/id/metropolitan-district-council/wolverhampton","B & Q 1243","30.65","Public Conveniences","5211","Materials","31/12/2018"
"Wolverhampton City Council","http://opendatacommunities.org/id/metropolitan-district-council/wolverhampton","AMZN Mktp UK M285C0924","23.92","Education And Access","5942","Books","31/12/2018"
"Wolverhampton City Council","http://opendatacommunities.org/id/metropolitan-district-council/wolverhampton","ITUNES.COM/BILL","0.79","Strategic ICTS (ICT Serv Budget)","5735","Computing - Purchase of Software","31/12/2018"
"Wolverhampton City Council","http://opendatacommunities.org/id/metropolitan-district-council/wolverhampton","AMZN Mktp UK M279R87Y4","12.60","Education And Access","5942","Books","31/12/2018"
"Wolverhampton City Council","http://opendatacommunities.org/id/metropolitan-district-council/wolverhampton","AMZN Mktp UK M254S32T4","3.20","Education And Access","5942","Books","31/12/2018"
"Wolverhampton City Council","http://opendatacommunities.org/id/metropolitan-district-council/wolverhampton","AMZN Mktp UK M23PG62B4","10.74","Education And Access","5942","Books","31/12/2018"
"Wolverhampton City Council","http://opendatacommunities.org/id/metropolitan-district-council/wolverhampton","ASDA GROCERIES ONLINE","225.27","Duke Street Bungalows","5411","Provisions (Not for resale)","31/12/2018"
"Wolverhampton City Council","http://opendatacommunities.org/id/metropolitan-district-council/wolverhampton","HM PASSPORT OFFICE","127.00","LAC Team","9399","Services - Fees and Charges","31/12/2018"
"Wolverhampton City Council","http://opendatacommunities.org/id/metropolitan-district-council/wolverhampton","Trainline","-4.90","CIN/CP Social Work Unit - Area 8","4112","Section 17","31/12/2018"
"Wolverhampton City Council","http://opendatacommunities.org/id/metropolitan-district-council/wolverhampton","WOLVERHAMPTON T/O","132.55","Mental Health Assessment & Care Mgmt","4112","Public Transport","31/12/2018"
"Wolverhampton City Council","http://opendatacommunities.org/id/metropolitan-district-council/wolverhampton","TFM FARM & COUNTRY SUP","13.99","Northicote Farm","5399","Protective Clothing","31/12/2018"
"Wolverhampton City Council","http://opendatacommunities.org/id/metropolitan-district-council/wolverhampton","ASDA GROCERIES ONLINE","-0.44","Upper Pendeford Farm Childrens Home","5411","Provisions (Not for resale)","28/12/2018"
"Wolverhampton City Council","http://opendatacommunities.org/id/metropolitan-district-council/wolverhampton","ASDA GROCERIES ONLINE","110.33","Upper Pendeford Farm Childrens Home","5411","Provisions (Not for resale)","28/12/2018"
"Wolverhampton City Council","http://opendatacommunities.org/id/metropolitan-district-council/wolverhampton","AMZN Mktp UK M20KT5D84","6.91","Global Budgets","5942","Books","28/12/2018"
"Wolverhampton City Council","http://opendatacommunities.org/id/metropolitan-district-council/wolverhampton","AMZN Mktp UK M28XM8SF4","26.82","Education And Access","5942","Materials","28/12/2018"
"Wolverhampton City Council","http://opendatacommunities.org/id/metropolitan-district-council/wolverhampton","AMZN Mktp UK M25DO52O4","26.67","Education And Access","5942","Books","28/12/2018"
"Wolverhampton City Council","http://opendatacommunities.org/id/metropolitan-district-council/wolverhampton","AMZN Mktp UK M240P5SP4","8.50","Education And Access","5942","Materials","28/12/2018"
"Wolverhampton City Council","http://opendatacommunities.org/id/metropolitan-district-council/wolverhampton","AMZN Mktp UK M230M6SB4","19.57","Education And Access","5942","Books","28/12/2018"
"Wolverhampton City Council","http://opendatacommunities.org/id/metropolitan-district-council/wolverhampton","WM MORRISONS STORE","35.07","Ernest Bold Court","5411","Provisions (Not for resale)","28/12/2018"
"Wolverhampton City Council","http://opendatacommunities.org/id/metropolitan-district-council/wolverhampton","WWW.LOCAL.GOV.UK","398.00","Member Training","7399","Equipment - Purchase","28/12/2018"
"Wolverhampton City Council","http://opendatacommunities.org/id/metropolitan-district-council/wolverhampton","EB  MENOPAUSE IN THE W","150.00","Central Training","7399","Training Expenses","28/12/2018"
"Wolverhampton City Council","http://opendatacommunities.org/id/metropolitan-district-council/wolverhampton","WESTMINSTER INSIGHT","225.00","Workforce Development","8299","Training Expenses","28/12/2018"
"Wolverhampton City Council","http://opendatacommunities.org/id/metropolitan-district-council/wolverhampton","WWW.ICO.GOV.UK","40.00","Members Expenses","9399","Subscriptions","28/12/2018"
"Wolverhampton City Council","http://opendatacommunities.org/id/metropolitan-district-council/wolverhampton","WWW.LOCAL.GOV.UK","199.00","Member Training","7399","Training Expenses","28/12/2018"
"Wolverhampton City Council","http://opendatacommunities.org/id/metropolitan-district-council/wolverhampton","Amazon.co.uk M26YF26M4","38.32","Fleet Management","5969","Equipment - Purchase","27/12/2018"
"Wolverhampton City Council","http://opendatacommunities.org/id/metropolitan-district-council/wolverhampton","BLOOMS MENSWEAR","6.67","Mayoral Expenses","5611","Clothing / Uniforms","26/12/2018"
"Wolverhampton City Council","http://opendatacommunities.org/id/metropolitan-district-council/wolverhampton","Amazon.co.uk M25FJ8QU4","39.78","Global Budgets","5969","Books","26/12/2018"
"Wolverhampton City Council","http://opendatacommunities.org/id/metropolitan-district-council/wolverhampton","ASDA GROCERIES ONLINE","5.00","Ernest Bold Court","5411","Provisions (Not for resale)","26/12/2018"
"Wolverhampton City Council","http://opendatacommunities.org/id/metropolitan-district-council/wolverhampton","HOME BARGAINS","8.94","Education Catering - General Overheads","5251","Catering","26/12/2018"
"Wolverhampton City Council","http://opendatacommunities.org/id/metropolitan-district-council/wolverhampton","CITY OF WOLVERHAMPTON","35.00","Head of Service - CINCP","9399","Services - Professional Fees","26/12/2018"
"Wolverhampton City Council","http://opendatacommunities.org/id/metropolitan-district-council/wolverhampton","ASDA STORE","15.98","Bradley Resource Centre","5411","Provisions (Not for resale)","26/12/2018"
"Wolverhampton City Council","http://opendatacommunities.org/id/metropolitan-district-council/wolverhampton","ASDA STORE 4753","8.08","Bradley Resource Centre","5411","Provisions (Not for resale)","24/12/2018"
"Wolverhampton City Council","http://opendatacommunities.org/id/metropolitan-district-council/wolverhampton","HERON FOODS LTD","9.62","Bradley Resource Centre","5499","Catering","24/12/2018"
"Wolverhampton City Council","http://opendatacommunities.org/id/metropolitan-district-council/wolverhampton","CardtronicsUK","250.00","CIN/CP Social Work Unit - Area 6","6011","Section 17","24/12/2018"
"Wolverhampton City Council","http://opendatacommunities.org/id/metropolitan-district-council/wolverhampton","BARCLAYS","250.00","CIN/CP Social Work Unit - Area 6","6011","Section 17","24/12/2018"
"Wolverhampton City Council","http://opendatacommunities.org/id/metropolitan-district-council/wolverhampton","POST OFFICE COUNTER","7.00","Fostering Team & Allowances","9402","Comms - Postage","24/12/2018"
"Wolverhampton City Council","http://opendatacommunities.org/id/metropolitan-district-council/wolverhampton","WWW.WOLVERHAMPTON.GOV.","76.16","LAC Transitions Team","9399","Client Allowances","24/12/2018"
"Wolverhampton City Council","http://opendatacommunities.org/id/metropolitan-district-council/wolverhampton","GOOGLE  ADS9680351324","500.00","Communications & Marketing - General","5968","Subscriptions","24/12/2018"
"Wolverhampton City Council","http://opendatacommunities.org/id/metropolitan-district-council/wolverhampton","ASDA SUPERSTORE","14.00","Youth Offending Team","5411","Provisions (Not for resale)","24/12/2018"
"Wolverhampton City Council","http://opendatacommunities.org/id/metropolitan-district-council/wolverhampton","TIMPSON LTD","10.00","Youth Offending Team","7251","Fixtures and Fittings - R&M","24/12/2018"
"Wolverhampton City Council","http://opendatacommunities.org/id/metropolitan-district-council/wolverhampton","ARGOS OLDBURY","200.98","LAC Transitions Team","5310","Client Allowances","24/12/2018"
"Wolverhampton City Council","http://opendatacommunities.org/id/metropolitan-district-council/wolverhampton","HOME BARGAINS WOLVERHA","63.11","LAC Transitions Team","5251","Client Allowances","24/12/2018"
"Wolverhampton City Council","http://opendatacommunities.org/id/metropolitan-district-council/wolverhampton","WATERSTONES","100.00","Wolverhampton Indoor and Open Market","5942","Books","24/12/2018"
"Wolverhampton City Council","http://opendatacommunities.org/id/metropolitan-district-council/wolverhampton","WAITROSE 696","10.00","Vulnerable Young Persons Team","5411","Provisions (Not for resale)","24/12/2018"
"Wolverhampton City Council","http://opendatacommunities.org/id/metropolitan-district-council/wolverhampton","Cross Country Trains","8.00","Head of Strategic Commissioning � People","4112","Public Transport","24/12/2018"
"Wolverhampton City Council","http://opendatacommunities.org/id/metropolitan-district-council/wolverhampton","Amazon.co.uk M29JA45H4","1.78","Mayoral Expenses","5969","Stationery","24/12/2018"
"Wolverhampton City Council","http://opendatacommunities.org/id/metropolitan-district-council/wolverhampton","AMZN Mktp UK M23A018K4","12.88","Learning Technologies","5942","Books","24/12/2018"
"Wolverhampton City Council","http://opendatacommunities.org/id/metropolitan-district-council/wolverhampton","Amazon.co.uk M279I1834","77.70","Learning Technologies","5969","Equipment - Purchase","24/12/2018"
"Wolverhampton City Council","http://opendatacommunities.org/id/metropolitan-district-council/wolverhampton","AMZN Mktp UK M28Y438W4","10.99","Global Budgets","5942","Books","24/12/2018"
"Wolverhampton City Council","http://opendatacommunities.org/id/metropolitan-district-council/wolverhampton","AMZN Mktp UK M275Q1BT4","12.99","Global Budgets","5942","Books","24/12/2018"
"Wolverhampton City Council","http://opendatacommunities.org/id/metropolitan-district-council/wolverhampton","AMZN Mktp UK M24908HB4","126.83","Environmental Crime and Consumer Protect","5942","Equipment - Purchase","24/12/2018"
"Wolverhampton City Council","http://opendatacommunities.org/id/metropolitan-district-council/wolverhampton","B&M RETAIL","249.99","LAC Transitions Team","5310","Client Allowances","24/12/2018"
"Wolverhampton City Council","http://opendatacommunities.org/id/metropolitan-district-council/wolverhampton","B & Q 1243","8.92","Bradley Resource Centre","5211","Equipment - R & M","24/12/2018"
"Wolverhampton City Council","http://opendatacommunities.org/id/metropolitan-district-council/wolverhampton","B & Q 1243","15.82","Learning Disabilities Management","5211","Equipment - R & M","24/12/2018"
"Wolverhampton City Council","http://opendatacommunities.org/id/metropolitan-district-council/wolverhampton","B&M RETAIL","49.99","LAC Transitions Team","5310","Client Allowances","24/12/2018"
"Wolverhampton City Council","http://opendatacommunities.org/id/metropolitan-district-council/wolverhampton","Central Taxis Limited","4.58","Adult Services - East","4121","Client Transport","24/12/2018"
"Wolverhampton City Council","http://opendatacommunities.org/id/metropolitan-district-council/wolverhampton","HIGHSTREET VOCUHERS","486.50","IMPACT","8641","Educ Trips, Holidays, Outings, Activity","21/12/2018"
"Wolverhampton City Council","http://opendatacommunities.org/id/metropolitan-district-council/wolverhampton","ASDA SUPERSTORE","25.62","LAC Transitions Team","5411","Client Allowances","21/12/2018"
"Wolverhampton City Council","http://opendatacommunities.org/id/metropolitan-district-council/wolverhampton","WWW.IKEA.COM","91.67","LAC Transitions Team","5712","Independant Living Allowance","21/12/2018"
"Wolverhampton City Council","http://opendatacommunities.org/id/metropolitan-district-council/wolverhampton","ROYAL CARPETS","25.00","LAC Transitions Team","5713","Client Allowances","21/12/2018"
"Wolverhampton City Council","http://opendatacommunities.org/id/metropolitan-district-council/wolverhampton","PAYPAL  RIGHTVP16","-86.29","EIP Locality 8","5621","Grant Payments","21/12/2018"
"Wolverhampton City Council","http://opendatacommunities.org/id/metropolitan-district-council/wolverhampton","BORSHCH ELECTRICS","358.32","LAC Transitions Team","5722","Independant Living Allowance","21/12/2018"
"Wolverhampton City Council","http://opendatacommunities.org/id/metropolitan-district-council/wolverhampton","NATIONWIDE","60.00","EIP Locality 2","6011","Grant Payments","21/12/2018"
"Wolverhampton City Council","http://opendatacommunities.org/id/metropolitan-district-council/wolverhampton","000002200500000","150.00","Childrens with Disabilities Team","6011","No Recourse to Public Funds","21/12/2018"
"Wolverhampton City Council","http://opendatacommunities.org/id/metropolitan-district-council/wolverhampton","000002200500000","250.00","Childrens with Disabilities Team","6011","No Recourse to Public Funds","21/12/2018"
"Wolverhampton City Council","http://opendatacommunities.org/id/metropolitan-district-council/wolverhampton","B&M RETAIL","171.52","LAC Transitions Team","5310","Client Allowances","21/12/2018"
"Wolverhampton City Council","http://opendatacommunities.org/id/metropolitan-district-council/wolverhampton","B&M RETAIL","111.56","LAC Transitions Team","5310","Client Allowances","21/12/2018"
"Wolverhampton City Council","http://opendatacommunities.org/id/metropolitan-district-council/wolverhampton","POST OFFICE COUNTER","16.24","Adoption and Residence Team & Allowances","9402","Comms - Postage","21/12/2018"
"Wolverhampton City Council","http://opendatacommunities.org/id/metropolitan-district-council/wolverhampton","Amazon.co.uk M260W8VQ4","1.83","Towers Outdoor Education Centre","5969","Equipment - Purchase","21/12/2018"
"Wolverhampton City Council","http://opendatacommunities.org/id/metropolitan-district-council/wolverhampton","PRODUCT SUPPORT AG","6.66","Headstart - Young People Engagement","5968","Computing - Maint Agreements","21/12/2018"
"Wolverhampton City Council","http://opendatacommunities.org/id/metropolitan-district-council/wolverhampton","PRODUCT SUPPORT AG","6.66","Headstart - Young People Engagement","5968","Computing - Maint Agreements","21/12/2018"
"Wolverhampton City Council","http://opendatacommunities.org/id/metropolitan-district-council/wolverhampton","AMZN Mktp UK M25017MM4","33.30","Mayoral Expenses","5942","Equipment - Purchase","21/12/2018"
"Wolverhampton City Council","http://opendatacommunities.org/id/metropolitan-district-council/wolverhampton","SAINSBURYS PFS (1340)","1.67","Mayoral Expenses","5541","Vehicle Maintenance - Repairs","21/12/2018"
"Wolverhampton City Council","http://opendatacommunities.org/id/metropolitan-district-council/wolverhampton","WWW.WOLVERHAMPTON.GOV.","77.14","LAC Transitions Team","9399","Client Allowances","21/12/2018"
"Wolverhampton City Council","http://opendatacommunities.org/id/metropolitan-district-council/wolverhampton","APPLE ONLINE STORE GBP","25.00","Strategic ICTS (ICT Serv Budget)","5732","Equipment - Purchase","21/12/2018"
"Wolverhampton City Council","http://opendatacommunities.org/id/metropolitan-district-council/wolverhampton","AO RETAIL LIMITED","232.50","Central Baths","5722","Equipment - Purchase","21/12/2018"
"Wolverhampton City Council","http://opendatacommunities.org/id/metropolitan-district-council/wolverhampton","ASDA GROCERIES ONLINE","-2.20","Upper Pendeford Farm Childrens Home","5411","Provisions (Not for resale)","21/12/2018"
"Wolverhampton City Council","http://opendatacommunities.org/id/metropolitan-district-council/wolverhampton","ASDA GROCERIES ONLINE","221.10","Upper Pendeford Farm Childrens Home","5411","Provisions (Not for resale)","21/12/2018"
"Wolverhampton City Council","http://opendatacommunities.org/id/metropolitan-district-council/wolverhampton","E.ON ENERGY SOLUTIONS","114.32","LAC Team","4900","Financial Assistance In Exceptional Circ","21/12/2018"
"Wolverhampton City Council","http://opendatacommunities.org/id/metropolitan-district-council/wolverhampton","ASDA GEORGE COM LEEDS","301.95","LAC Transitions Team","5411","Client Allowances","21/12/2018"
"Wolverhampton City Council","http://opendatacommunities.org/id/metropolitan-district-council/wolverhampton","ARGOS RETAIL GROUP","19.99","Wolverhampton Indoor and Open Market","5310","Equipment - Purchase","21/12/2018"
"Wolverhampton City Council","http://opendatacommunities.org/id/metropolitan-district-council/wolverhampton","B & Q 1243","91.67","Culwell Street Depot","5211","Equipment - Purchase","21/12/2018"
"Wolverhampton City Council","http://opendatacommunities.org/id/metropolitan-district-council/wolverhampton","LIDDELL ELECTRICAL DIS","12.75","Traffic Signals","5065","Computing - Purchase of Hardware","21/12/2018"
"Wolverhampton City Council","http://opendatacommunities.org/id/metropolitan-district-council/wolverhampton","WM MORRISONS STORE","24.49","Ernest Bold Court","5411","Provisions (Not for resale)","21/12/2018"
"Wolverhampton City Council","http://opendatacommunities.org/id/metropolitan-district-council/wolverhampton","IMAGINATIVE MINDS LIMI","400.00","Technical Support","8999","Services - Professional Fees","21/12/2018"
"Wolverhampton City Council","http://opendatacommunities.org/id/metropolitan-district-council/wolverhampton","Amazon.co.uk M22J18V44","18.12","Environmental Protection","5969","Equipment - Purchase","21/12/2018"
"Wolverhampton City Council","http://opendatacommunities.org/id/metropolitan-district-council/wolverhampton","ASDA SUPERSTORE","50.20","Duke Street Bungalows","5411","R4010","21/12/2018"
"Wolverhampton City Council","http://opendatacommunities.org/id/metropolitan-district-council/wolverhampton","ASDA SUPERSTORE","69.96","Duke Street Bungalows","5411","R4010","21/12/2018"
"Wolverhampton City Council","http://opendatacommunities.org/id/metropolitan-district-council/wolverhampton","ASDA SUPERSTORE","74.29","Duke Street Bungalows","5411","Provisions (Not for resale)","21/12/2018"
"Wolverhampton City Council","http://opendatacommunities.org/id/metropolitan-district-council/wolverhampton","AMZN Mktp UK M23P92VP4","5.51","Global Budgets","5942","Books","21/12/2018"
"Wolverhampton City Council","http://opendatacommunities.org/id/metropolitan-district-council/wolverhampton","AMZN MKTP UK M21S90X64","62.78","Members Expenses","5942","Books","21/12/2018"
"Wolverhampton City Council","http://opendatacommunities.org/id/metropolitan-district-council/wolverhampton","AMZN Mktp UK M267J65L4","19.99","Northicote Farm","5942","Equipment - Purchase","21/12/2018"
"Wolverhampton City Council","http://opendatacommunities.org/id/metropolitan-district-council/wolverhampton","WOLVERHAMPTON GRAND TH","147.00","Penn Fields Special School","7922","Educ Trips, Holidays, Outings, Activity","20/12/2018"
"Wolverhampton City Council","http://opendatacommunities.org/id/metropolitan-district-council/wolverhampton","DISCLOSURE AND BARRING","25.00","Mayoral Expenses","9399","Services - Fees and Charges","20/12/2018"
"Wolverhampton City Council","http://opendatacommunities.org/id/metropolitan-district-council/wolverhampton","GLOBE/PACKAGING EXPRES","120.70","Technical Material","5111","Materials","20/12/2018"
"Wolverhampton City Council","http://opendatacommunities.org/id/metropolitan-district-council/wolverhampton","WWW.KITEPACKAGING.CO.U","38.93","Technical Material","5085","Equipment - Purchase","20/12/2018"
"Wolverhampton City Council","http://opendatacommunities.org/id/metropolitan-district-council/wolverhampton","POST OFFICE COUNTER","17.20","Adoption and Residence Team & Allowances","9402","Comms - Postage","20/12/2018"
"Wolverhampton City Council","http://opendatacommunities.org/id/metropolitan-district-council/wolverhampton","PENNINE OUTDOOR FABRIC","5.00","Towers Outdoor Education Centre","5970","Fixtures and Fittings - Purchases","20/12/2018"
"Wolverhampton City Council","http://opendatacommunities.org/id/metropolitan-district-council/wolverhampton","Amazon.co.uk M29Z44XV4","37.60","Towers Outdoor Education Centre","5969","Equipment - Purchase","20/12/2018"
"Wolverhampton City Council","http://opendatacommunities.org/id/metropolitan-district-council/wolverhampton","SAINSBURYS (2340)","109.35","Wholly Owned Company - Operations","5411","Provisions (Not for resale)","20/12/2018"
"Wolverhampton City Council","http://opendatacommunities.org/id/metropolitan-district-council/wolverhampton","WWW.WEDDINGCONFETTI.CO","23.85","WV Active Marketing","5331","Equipment - Purchase","20/12/2018"
"Wolverhampton City Council","http://opendatacommunities.org/id/metropolitan-district-council/wolverhampton","FACEBK  ZKPFRJNAR2","500.00","Communications & Marketing - General","7311","Marketing \ Non-staff advertising","20/12/2018"
"Wolverhampton City Council","http://opendatacommunities.org/id/metropolitan-district-council/wolverhampton","POUNDLAND LTD 1463","6.00","Business Support Services","5310","Equipment - Purchase","20/12/2018"
"Wolverhampton City Council","http://opendatacommunities.org/id/metropolitan-district-council/wolverhampton","000002200500000","250.00","CIN/CP Social Work Unit - Area 6","6011","No Recourse to Public Funds","20/12/2018"
"Wolverhampton City Council","http://opendatacommunities.org/id/metropolitan-district-council/wolverhampton","LOOP11.COM","162.49","City Direct","7372","Computing - Purchase of Software","20/12/2018"
"Wolverhampton City Council","http://opendatacommunities.org/id/metropolitan-district-council/wolverhampton","HMCTS-NORFOLK030","15.00","LAC Transitions Team","9222","Client Allowances","20/12/2018"
"Wolverhampton City Council","http://opendatacommunities.org/id/metropolitan-district-council/wolverhampton","THE RANGE","31.74","Wholly Owned Company - Operations","5311","Equipment - Purchase","20/12/2018"
"Wolverhampton City Council","http://opendatacommunities.org/id/metropolitan-district-council/wolverhampton","CT WOLVERHAMPTON","150.00","LAC Transitions Team","8398","Client Allowances","20/12/2018"
"Wolverhampton City Council","http://opendatacommunities.org/id/metropolitan-district-council/wolverhampton","CARVER/WOLVERHAMPTON/L","14.47","Cemeteries","5211","Materials","20/12/2018"
"Wolverhampton City Council","http://opendatacommunities.org/id/metropolitan-district-council/wolverhampton","WWW.PARTYPIECES.CO.UK","23.42","WV Active Marketing","5969","Equipment - Purchase","20/12/2018"
"Wolverhampton City Council","http://opendatacommunities.org/id/metropolitan-district-council/wolverhampton","WICKES","14.99","Specialist Support Service - North","5211","Equipment - R & M","20/12/2018"
"Wolverhampton City Council","http://opendatacommunities.org/id/metropolitan-district-council/wolverhampton","AMZN Mktp UK M29K95XI4","19.38","Corporate Programs","5942","Books","20/12/2018"
"Wolverhampton City Council","http://opendatacommunities.org/id/metropolitan-district-council/wolverhampton","ART INTERIORS / FRAMER","20.70","Civic Centre","5971","Services - Professional Fees","20/12/2018"
"Wolverhampton City Council","http://opendatacommunities.org/id/metropolitan-district-council/wolverhampton","APPLE ONLINE STORE GBP","524.12","Strategic ICTS (ICT Serv Budget)","5732","Equipment - Purchase","20/12/2018"
"Wolverhampton City Council","http://opendatacommunities.org/id/metropolitan-district-council/wolverhampton","KINGSWAYSOFT","1616.67","Strategic ICTS (ICT Serv Budget)","5734","Computing - Purchase of Software","20/12/2018"
"Wolverhampton City Council","http://opendatacommunities.org/id/metropolitan-district-council/wolverhampton","QUEENSWAY INTERIOR","449.00","LAC Transitions Team","5712","Client Allowances","20/12/2018"
"Wolverhampton City Council","http://opendatacommunities.org/id/metropolitan-district-council/wolverhampton","YOUNG`S SHOE REPAIRS L","27.35","Wolverhampton Indoor and Open Market","7251","Fixtures and Fittings - R&M","20/12/2018"
"Wolverhampton City Council","http://opendatacommunities.org/id/metropolitan-district-council/wolverhampton","Amazon.co.uk M26FU5XL4","52.32","Community Enablement","5969","Equipment - Purchase","20/12/2018"
"Wolverhampton City Council","http://opendatacommunities.org/id/metropolitan-district-council/wolverhampton","COMPANY CARDS LTD","38.50","Technical Support","2741","Publications","20/12/2018"
"Wolverhampton City Council","http://opendatacommunities.org/id/metropolitan-district-council/wolverhampton","AMZN Mktp UK M22Q97XK4","7.16","Global Budgets","5942","Books","20/12/2018"
"Wolverhampton City Council","http://opendatacommunities.org/id/metropolitan-district-council/wolverhampton","AMZN Mktp UK M20A43XS4","39.99","Global Budgets","5942","Books","20/12/2018"
"Wolverhampton City Council","http://opendatacommunities.org/id/metropolitan-district-council/wolverhampton","WICKES","20.82","Learning Disabilities Management","5211","Equipment - Purchase","20/12/2018"
"Wolverhampton City Council","http://opendatacommunities.org/id/metropolitan-district-council/wolverhampton","SMYTHS TOYS","34.99","Upper Pendeford Farm Childrens Home","5945","Educ Trips, Holidays, Outings, Activity","20/12/2018"
"Wolverhampton City Council","http://opendatacommunities.org/id/metropolitan-district-council/wolverhampton","AMZN Mktp UK M24KQ7GP4","31.61","Environmental Crime and Consumer Protect","5942","Equipment - Purchase","20/12/2018"
"Wolverhampton City Council","http://opendatacommunities.org/id/metropolitan-district-council/wolverhampton","HMRC TPS","1381.24","Legal Services","9399","Services - Fees and Charges","20/12/2018"
"Wolverhampton City Council","http://opendatacommunities.org/id/metropolitan-district-council/wolverhampton","SMYTHS TOYS","158.43","Upper Pendeford Farm Childrens Home","5945","Educ Trips, Holidays, Outings, Activity","20/12/2018"
"Wolverhampton City Council","http://opendatacommunities.org/id/metropolitan-district-council/wolverhampton","THE POST OFFICE","204.00","Adult Services - North","9402","Comms - Postage","20/12/2018"
"Wolverhampton City Council","http://opendatacommunities.org/id/metropolitan-district-council/wolverhampton","KONICA MINOLTA BUSINES","256.98","Music Support Team","7399","Equipment - R & M","20/12/2018"
"Wolverhampton City Council","http://opendatacommunities.org/id/metropolitan-district-council/wolverhampton","Trainline","9.92","CIN/CP Social Work Unit - Area 8","4112","Section 17","20/12/2018"
"Wolverhampton City Council","http://opendatacommunities.org/id/metropolitan-district-council/wolverhampton","Trainline","8.80","CIN/CP Social Work Unit - Area 8","4112","Section 17","20/12/2018"
"Wolverhampton City Council","http://opendatacommunities.org/id/metropolitan-district-council/wolverhampton","ZAUN LIMITED","157.20","Parks - East Area Management","5211","Materials","20/12/2018"
"Wolverhampton City Council","http://opendatacommunities.org/id/metropolitan-district-council/wolverhampton","Amazon.co.uk M247K9GG4","3.02","Mayoral Expenses","5969","Equipment - Purchase","20/12/2018"
"Wolverhampton City Council","http://opendatacommunities.org/id/metropolitan-district-council/wolverhampton","ARGOS LTD","57.58","LAC Transitions Team","5310","Client Allowances","19/12/2018"
"Wolverhampton City Council","http://opendatacommunities.org/id/metropolitan-district-council/wolverhampton","SAINSBURYS (2340)","198.45","Penn Fields Special School","5411","Catering","19/12/2018"
"Wolverhampton City Council","http://opendatacommunities.org/id/metropolitan-district-council/wolverhampton","HUGHES","-488.00","LAC Transitions Team","5732","Client Allowances","19/12/2018"
"Wolverhampton City Council","http://opendatacommunities.org/id/metropolitan-district-council/wolverhampton","ARGOS LTD","14.96","LAC Transitions Team","5310","Client Allowances","19/12/2018"
"Wolverhampton City Council","http://opendatacommunities.org/id/metropolitan-district-council/wolverhampton","HUGHES","244.00","LAC Transitions Team","5732","Client Allowances","19/12/2018"
"Wolverhampton City Council","http://opendatacommunities.org/id/metropolitan-district-council/wolverhampton","HUGHES","244.00","LAC Transitions Team","5732","Client Allowances","19/12/2018"
"Wolverhampton City Council","http://opendatacommunities.org/id/metropolitan-district-council/wolverhampton","KHAN CARPET CENTRE","250.00","LAC Transitions Team","5713","Independant Living Allowance","19/12/2018"
"Wolverhampton City Council","http://opendatacommunities.org/id/metropolitan-district-council/wolverhampton","KHAN CARPET CENTRE","291.67","LAC Transitions Team","5713","Independant Living Allowance","19/12/2018"
"Wolverhampton City Council","http://opendatacommunities.org/id/metropolitan-district-council/wolverhampton","ARGOS RETAIL GROUP","39.99","CAT","5310","Equipment - Purchase","19/12/2018"
"Wolverhampton City Council","http://opendatacommunities.org/id/metropolitan-district-council/wolverhampton","PARCELFORCE","33.16","BP Portrait Award","4215","Comms - Postage","19/12/2018"
"Wolverhampton City Council","http://opendatacommunities.org/id/metropolitan-district-council/wolverhampton","BOOTS","11.25","Technical Material","5912","Equipment - Purchase","19/12/2018"
"Wolverhampton City Council","http://opendatacommunities.org/id/metropolitan-district-council/wolverhampton","CITY OF WOLVERHAMPTON","20.00","Adoption and Residence Team & Allowances","9399","Services - Fees and Charges","19/12/2018"
"Wolverhampton City Council","http://opendatacommunities.org/id/metropolitan-district-council/wolverhampton","Amazon.co.uk M24QJ8P84","18.38","Towers Outdoor Education Centre","5969","Equipment - Purchase","19/12/2018"
"Wolverhampton City Council","http://opendatacommunities.org/id/metropolitan-district-council/wolverhampton","PENNINE OUTDOOR FA","17.33","Towers Outdoor Education Centre","5949","Fixtures and Fittings - Purchases","19/12/2018"
"Wolverhampton City Council","http://opendatacommunities.org/id/metropolitan-district-council/wolverhampton","Teresa s Flowers","38.00","Fostering Team & Allowances","5992","Equipment - Purchase","19/12/2018"
"Wolverhampton City Council","http://opendatacommunities.org/id/metropolitan-district-council/wolverhampton","MARKS&SPENCER PLC SACA","21.65","Business Support Services","5411","Provisions (Not for resale)","19/12/2018"
"Wolverhampton City Council","http://opendatacommunities.org/id/metropolitan-district-council/wolverhampton","POUNDLAND LTD 1463","6.05","Admin & Support","5310","Equipment - Purchase","19/12/2018"
"Wolverhampton City Council","http://opendatacommunities.org/id/metropolitan-district-council/wolverhampton","XL DISPLAYS LTD","91.00","Central Baths","5099","Equipment - Purchase","19/12/2018"
"Wolverhampton City Council","http://opendatacommunities.org/id/metropolitan-district-council/wolverhampton","CITY OF WOLVERHAMPTON","15.00","LAC Team","9399","Services - Fees and Charges","19/12/2018"
"Wolverhampton City Council","http://opendatacommunities.org/id/metropolitan-district-council/wolverhampton","000002200500000","120.00","Emergency Duty Team","6011","Financial Assistance In Exceptional Circ","19/12/2018"
"Wolverhampton City Council","http://opendatacommunities.org/id/metropolitan-district-council/wolverhampton","CUMMINGS BROTHERS LOCK","5.00","Wholesale Market Facilities Management","7399","Equipment - Purchase","19/12/2018"
"Wolverhampton City Council","http://opendatacommunities.org/id/metropolitan-district-council/wolverhampton","000002200500000","10.00","EIP Locality 1","6011","Materials","19/12/2018"
"Wolverhampton City Council","http://opendatacommunities.org/id/metropolitan-district-council/wolverhampton","B & Q 1243","7.65","Blakenhall Resource Centre","5211","Equipment - R & M","19/12/2018"
"Wolverhampton City Council","http://opendatacommunities.org/id/metropolitan-district-council/wolverhampton","ARGOS RETAIL GROUP","102.97","LAC Team","5310","Financial Assistance In Exceptional Circ","19/12/2018"
"Wolverhampton City Council","http://opendatacommunities.org/id/metropolitan-district-council/wolverhampton","RAGLAN STREET ST MARK","200.00","Duke Street Bungalows","6011","Provisions (Not for resale)","19/12/2018"
"Wolverhampton City Council","http://opendatacommunities.org/id/metropolitan-district-council/wolverhampton","Trainline","9.92","CIN/CP Social Work Unit - Area 8","4112","Section 17","19/12/2018"
"Wolverhampton City Council","http://opendatacommunities.org/id/metropolitan-district-council/wolverhampton","CITY OF WOLVERHAMPTON","-20.83","LAC Transitions Team","9399","Client Allowances","19/12/2018"
"Wolverhampton City Council","http://opendatacommunities.org/id/metropolitan-district-council/wolverhampton","ANYLAMPUK","76.69","Bilston Museum","5200","R4007","18/12/2018"
"Wolverhampton City Council","http://opendatacommunities.org/id/metropolitan-district-council/wolverhampton","AMZN MKTP UK M22O97EJ4","11.66","Visitor Economy - Development","5942","Books","18/12/2018"
"Wolverhampton City Council","http://opendatacommunities.org/id/metropolitan-district-council/wolverhampton","Allpay  MOSELEY AND DI","375.00","LAC Transitions Team","8398","Independant Living Allowance","18/12/2018"
"Wolverhampton City Council","http://opendatacommunities.org/id/metropolitan-district-council/wolverhampton","SOUTHERN REGALIA LTD","100.00","Mayoral Expenses","5137","Clothing / Uniforms","18/12/2018"
"Wolverhampton City Council","http://opendatacommunities.org/id/metropolitan-district-council/wolverhampton","LOYD 37 CHURCH STREET","100.00","EIP Locality 8","6011","Grant Payments","18/12/2018"
"Wolverhampton City Council","http://opendatacommunities.org/id/metropolitan-district-council/wolverhampton","WOLVERHAMPTON CC","12.50","Towers Outdoor Education Centre","7523","Equipment - Purchase","18/12/2018"
"Wolverhampton City Council","http://opendatacommunities.org/id/metropolitan-district-council/wolverhampton","Virgin Trains","326.40","Fostering Team & Allowances","4112","Public Transport","18/12/2018"
"Wolverhampton City Council","http://opendatacommunities.org/id/metropolitan-district-council/wolverhampton","ROOKERY  Sainsburys B","100.00","Headstart Phase 3","6011","Financial Assistance In Exceptional Circ","18/12/2018"
"Wolverhampton City Council","http://opendatacommunities.org/id/metropolitan-district-council/wolverhampton","ADDSEARCH","57.00","City Direct","7372","Computing - Purchase of Software","18/12/2018"
"Wolverhampton City Council","http://opendatacommunities.org/id/metropolitan-district-council/wolverhampton","SCREWFIX WOLVERHAM","15.99","Cemeteries","5211","Materials","18/12/2018"
"Wolverhampton City Council","http://opendatacommunities.org/id/metropolitan-district-council/wolverhampton","POUNDLAND LTD 1463","12.05","Foundation Studies","5310","Equipment - Purchase","18/12/2018"
"Wolverhampton City Council","http://opendatacommunities.org/id/metropolitan-district-council/wolverhampton","ROYAL CARPETS","125.00","LAC Transitions Team","5713","Client Allowances","18/12/2018"
"Wolverhampton City Council","http://opendatacommunities.org/id/metropolitan-district-council/wolverhampton","CARVER/WOLVERHAMPTON/L","52.05","Culwell Street Depot","5211","R&M - Departmental planned (external)","18/12/2018"
"Wolverhampton City Council","http://opendatacommunities.org/id/metropolitan-district-council/wolverhampton","ANDREWS COATINGS LTD","75.89","Community Enablement","5198","Materials","18/12/2018"
"Wolverhampton City Council","http://opendatacommunities.org/id/metropolitan-district-council/wolverhampton","WOLVERHAMPTON T/O","28.50","LAC Team","4112","Public Transport","18/12/2018"
"Wolverhampton City Council","http://opendatacommunities.org/id/metropolitan-district-council/wolverhampton","THE OASIS CAFE","5.00","LAC Team","5814","Educ Trips, Holidays, Outings, Activity","18/12/2018"
"Wolverhampton City Council","http://opendatacommunities.org/id/metropolitan-district-council/wolverhampton","Trainline","-10.00","Education Catering - General Overheads","4112","Public Transport","18/12/2018"
"Wolverhampton City Council","http://opendatacommunities.org/id/metropolitan-district-council/wolverhampton","AMZ Amazon.co.uk","-16.30","Blakenhall Commty & Healthy Living Ctr","5999","Equipment - Purchase","18/12/2018"
"Wolverhampton City Council","http://opendatacommunities.org/id/metropolitan-district-council/wolverhampton","WAYFAIR #2615228788","214.98","LAC Transitions Team","5965","Client Allowances","18/12/2018"
"Wolverhampton City Council","http://opendatacommunities.org/id/metropolitan-district-council/wolverhampton","ASDA GROCERIES ONLINE","58.90","Ernest Bold Court","5411","Provisions (Not for resale)","18/12/2018"
"Wolverhampton City Council","http://opendatacommunities.org/id/metropolitan-district-council/wolverhampton","CURRYS S/S","150.00","Mayoral Expenses","5732","Gratuities","18/12/2018"
"Wolverhampton City Council","http://opendatacommunities.org/id/metropolitan-district-council/wolverhampton","Trainline","47.21","CIN/CP Social Work Unit - Area 4","4112","Section 17","18/12/2018"
"Wolverhampton City Council","http://opendatacommunities.org/id/metropolitan-district-council/wolverhampton","CARD FACTORY","4.05","School Crossing Patrol","5947","Equipment - Purchase","18/12/2018"
"Wolverhampton City Council","http://opendatacommunities.org/id/metropolitan-district-council/wolverhampton","DEBENHAMS","13.33","School Crossing Patrol","5311","Equipment - Purchase","18/12/2018"
"Wolverhampton City Council","http://opendatacommunities.org/id/metropolitan-district-council/wolverhampton","EE STORE R501","25.00","School Crossing Patrol","4814","Comms - Telephone Call charges","18/12/2018"
"Wolverhampton City Council","http://opendatacommunities.org/id/metropolitan-district-council/wolverhampton","NEXT RETAIL LTD 109","18.33","School Crossing Patrol","5651","Equipment - Purchase","18/12/2018"
"Wolverhampton City Council","http://opendatacommunities.org/id/metropolitan-district-council/wolverhampton","CITY OF WOLVERHAMPTON","12.00","Head of Service - CINCP","9399","Services - Fees and Charges","18/12/2018"
"Wolverhampton City Council","http://opendatacommunities.org/id/metropolitan-district-council/wolverhampton","ARGOS LTD","85.40","Patching","5310","Equipment - Purchase","18/12/2018"
"Wolverhampton City Council","http://opendatacommunities.org/id/metropolitan-district-council/wolverhampton","WWW.ARGOS.CO.UK","132.93","EIP Locality 7","5310","Grant Payments","18/12/2018"
"Wolverhampton City Council","http://opendatacommunities.org/id/metropolitan-district-council/wolverhampton","Slug and Lettuce","29.12","Planning","5812","Educ Trips, Holidays, Outings, Activity","18/12/2018"
"Wolverhampton City Council","http://opendatacommunities.org/id/metropolitan-district-council/wolverhampton","CO-OP GROUP 070362","11.60","Northicote Farm","5411","Provisions (Not for resale)","18/12/2018"
"Wolverhampton City Council","http://opendatacommunities.org/id/metropolitan-district-council/wolverhampton","ROADMUNK.COM ROADMUNK","458.80","Strategic ICTS (ICT Serv Budget)","5734","Computing - Purchase of Software","17/12/2018"
"Wolverhampton City Council","http://opendatacommunities.org/id/metropolitan-district-council/wolverhampton","WWW.LIFTERZ.CO.UK","332.00","Visitor Economy - Development","5085","Equipment - Purchase","17/12/2018"
"Wolverhampton City Council","http://opendatacommunities.org/id/metropolitan-district-council/wolverhampton","Trainline","158.02","Revenues","4112","Public Transport","17/12/2018"
"Wolverhampton City Council","http://opendatacommunities.org/id/metropolitan-district-council/wolverhampton","PAYPAL  CREATIVEENT","225.00","Penn Fields Special School","7922","Educ Trips, Holidays, Outings, Activity","17/12/2018"
"Wolverhampton City Council","http://opendatacommunities.org/id/metropolitan-district-council/wolverhampton","Amazon Prime","-6.66","CIN/CP Social Work Unit - Area 5","5968","Subscriptions","17/12/2018"
"Wolverhampton City Council","http://opendatacommunities.org/id/metropolitan-district-council/wolverhampton","B&M RETAIL LTD","-20.82","LAC Transitions Team","5310","Accommodation Costs","17/12/2018"
"Wolverhampton City Council","http://opendatacommunities.org/id/metropolitan-district-council/wolverhampton","BEATSABAR MUSIC PROJEC","221.62","Youth Offending Team","5733","Equipment - Purchase","17/12/2018"
"Wolverhampton City Council","http://opendatacommunities.org/id/metropolitan-district-council/wolverhampton","000002200500000","220.00","Childrens with Disabilities Team","6011","No Recourse to Public Funds","17/12/2018"
"Wolverhampton City Council","http://opendatacommunities.org/id/metropolitan-district-council/wolverhampton","IKEA LTD","104.67","Towers Outdoor Education Centre","5712","Fixtures and Fittings - Purchases","17/12/2018"
"Wolverhampton City Council","http://opendatacommunities.org/id/metropolitan-district-council/wolverhampton","WWW.LEISURE.ORDNANCE","15.29","Towers Outdoor Education Centre","9399","Equipment - Purchase","17/12/2018"
"Wolverhampton City Council","http://opendatacommunities.org/id/metropolitan-district-council/wolverhampton","WEST COAST TRAINS","6.00","Economic Development","4112","Public Transport","17/12/2018"
"Wolverhampton City Council","http://opendatacommunities.org/id/metropolitan-district-council/wolverhampton","Trainline","82.26","Welfare Rights","4112","Public Transport","17/12/2018"
"Wolverhampton City Council","http://opendatacommunities.org/id/metropolitan-district-council/wolverhampton","POUNDLAND LTD 1020","7.55","Business Support Services","5310","Equipment - Purchase","17/12/2018"
"Wolverhampton City Council","http://opendatacommunities.org/id/metropolitan-district-council/wolverhampton","WISEPOPS","87.71","City Direct","7372","Computing - Purchase of Software","17/12/2018"
"Wolverhampton City Council","http://opendatacommunities.org/id/metropolitan-district-council/wolverhampton","ITUNES.COM/BILL","2.07","LAC Education Team (LACE)","5735","Computing - Purchase of Software","17/12/2018"
"Wolverhampton City Council","http://opendatacommunities.org/id/metropolitan-district-council/wolverhampton","ARGOS LTD","223.32","LAC Transitions Team","5310","Client Allowances","17/12/2018"
"Wolverhampton City Council","http://opendatacommunities.org/id/metropolitan-district-council/wolverhampton","CITY OF WOLVERHAMPTON","15.00","LAC Team","9399","Services - Fees and Charges","17/12/2018"
"Wolverhampton City Council","http://opendatacommunities.org/id/metropolitan-district-council/wolverhampton","HOTELS.COM154143311952","75.01","LAC Team","4722","Accommodation Costs","17/12/2018"
"Wolverhampton City Council","http://opendatacommunities.org/id/metropolitan-district-council/wolverhampton","DRI Sennheiser","9.92","Strategic ICTS (ICT Serv Budget)","5734","Computing - Purchase of Software","17/12/2018"
"Wolverhampton City Council","http://opendatacommunities.org/id/metropolitan-district-council/wolverhampton","WWW.BROADBANDBUYER.CO.","274.07","Strategic ICTS (ICT Serv Budget)","5045","Computing - Purchase of Hardware","17/12/2018"
"Wolverhampton City Council","http://opendatacommunities.org/id/metropolitan-district-council/wolverhampton","ASDA GROCERIES ONLINE","0.74","Upper Pendeford Farm Childrens Home","5411","Provisions (Not for resale)","17/12/2018"
"Wolverhampton City Council","http://opendatacommunities.org/id/metropolitan-district-council/wolverhampton","ASDA GROCERIES ONLINE","120.28","Upper Pendeford Farm Childrens Home","5411","Provisions (Not for resale)","17/12/2018"
"Wolverhampton City Council","http://opendatacommunities.org/id/metropolitan-district-council/wolverhampton","ASDA GROCERIES ONLINE","3.00","Upper Pendeford Farm Childrens Home","5411","Provisions (Not for resale)","17/12/2018"
"Wolverhampton City Council","http://opendatacommunities.org/id/metropolitan-district-council/wolverhampton","ASDA GROCERIES ONLINE","-0.95","Central Costs","5411","Provisions (Not for resale)","17/12/2018"
"Wolverhampton City Council","http://opendatacommunities.org/id/metropolitan-district-council/wolverhampton","ASDA GROCERIES ONLINE","39.87","Creative Studies Delivery Area","5411","Provisions (Not for resale)","17/12/2018"
"Wolverhampton City Council","http://opendatacommunities.org/id/metropolitan-district-council/wolverhampton","IZ  D & K TRADING (MID","158.00","Wolverhampton Indoor and Open Market","5999","Equipment - Purchase","17/12/2018"
"Wolverhampton City Council","http://opendatacommunities.org/id/metropolitan-district-council/wolverhampton","POST OFFICE COUNTER","455.00","LAC Admin Team","9402","Comms - Postage","17/12/2018"
"Wolverhampton City Council","http://opendatacommunities.org/id/metropolitan-district-council/wolverhampton","Virgin Trains","59.00","LAC Team","4112","Public Transport","17/12/2018"
"Wolverhampton City Council","http://opendatacommunities.org/id/metropolitan-district-council/wolverhampton","AMZN Mktp UK M24ML7ZN4","259.90","Community Recreation","5942","Equipment - Purchase","17/12/2018"
"Wolverhampton City Council","http://opendatacommunities.org/id/metropolitan-district-council/wolverhampton","AMZN Mktp UK M20XM3ZZ4","62.31","Blakenhall Commty & Healthy Living Ctr","5942","Equipment - Purchase","17/12/2018"
"Wolverhampton City Council","http://opendatacommunities.org/id/metropolitan-district-council/wolverhampton","CardtronicsUK","60.00","EIP Locality 3","6011","Grant Payments to Individuals","17/12/2018"
"Wolverhampton City Council","http://opendatacommunities.org/id/metropolitan-district-council/wolverhampton","WICKES","12.49","Community Enablement","5211","Equipment - R & M","17/12/2018"
"Wolverhampton City Council","http://opendatacommunities.org/id/metropolitan-district-council/wolverhampton","ASDA GROCERIES ONLINE","47.63","Ernest Bold Court","5411","Provisions (Not for resale)","17/12/2018"
"Wolverhampton City Council","http://opendatacommunities.org/id/metropolitan-district-council/wolverhampton","POST OFFICE COUNTER","129.00","Trading Standards","9402","Services - Fees and Charges","17/12/2018"
"Wolverhampton City Council","http://opendatacommunities.org/id/metropolitan-district-council/wolverhampton","ARGOS WOLVERHAMPTO","12.49","Global Budgets","5310","Equipment - Purchase","17/12/2018"
"Wolverhampton City Council","http://opendatacommunities.org/id/metropolitan-district-council/wolverhampton","EB  SDN APPRENTICESHIP","190.00","Central Training","7399","Training Expenses","17/12/2018"
"Wolverhampton City Council","http://opendatacommunities.org/id/metropolitan-district-council/wolverhampton","REGISTRATION SERVICES","31.00","Head of Service - CINCP","7999","Services - Professional Fees","17/12/2018"
"Wolverhampton City Council","http://opendatacommunities.org/id/metropolitan-district-council/wolverhampton","WCC MOTO PAYMENTS","26.00","CIN/CP Social Work Unit - Area 4","9399","Section 17","17/12/2018"
"Wolverhampton City Council","http://opendatacommunities.org/id/metropolitan-district-council/wolverhampton","CT WOLVERHAMPTON","85.00","CIN/CP Social Work Unit - Area 4","8398","Section 17","17/12/2018"
"Wolverhampton City Council","http://opendatacommunities.org/id/metropolitan-district-council/wolverhampton","CUMMINGS BROTHERS LOCK","15.00","Music Support Team","7399","Stationery","17/12/2018"
"Wolverhampton City Council","http://opendatacommunities.org/id/metropolitan-district-council/wolverhampton","GRO HM PASSPORT OFFICE","-9.25","LAC Team","9399","Services - Fees and Charges","17/12/2018"
"Wolverhampton City Council","http://opendatacommunities.org/id/metropolitan-district-council/wolverhampton","CardtronicsUK","30.00","Delivery & OCE Development","6011","Financial Assistance In Exceptional Circ","17/12/2018"
"Wolverhampton City Council","http://opendatacommunities.org/id/metropolitan-district-council/wolverhampton","AMZN MKTP UK M24OY5LS4","16.64","Northicote Farm","5942","Comms - Mobile Telephones","17/12/2018"
"Wolverhampton City Council","http://opendatacommunities.org/id/metropolitan-district-council/wolverhampton","WM MORRISONS STORE","55.10","Bradley Resource Centre","5411","Provisions (Not for resale)","14/12/2018"
"Wolverhampton City Council","http://opendatacommunities.org/id/metropolitan-district-council/wolverhampton","CardtronicsUK","200.00","Private Hire Vehicles","6011","Financial Assistance In Exceptional Circ","14/12/2018"
"Wolverhampton City Council","http://opendatacommunities.org/id/metropolitan-district-council/wolverhampton","B&M RETAIL LTD","26.65","LAC Transitions Team","5310","Accommodation Costs","14/12/2018"
"Wolverhampton City Council","http://opendatacommunities.org/id/metropolitan-district-council/wolverhampton","B&M RETAIL LTD","24.98","LAC Transitions Team","5310","Accommodation Costs","14/12/2018"
"Wolverhampton City Council","http://opendatacommunities.org/id/metropolitan-district-council/wolverhampton","Amazon.co.uk M20N834B4","12.74","Mayoral Expenses","5969","Equipment - Purchase","14/12/2018"
"Wolverhampton City Council","http://opendatacommunities.org/id/metropolitan-district-council/wolverhampton","AMZN Mktp UK M23PL04B4","26.08","Mayoral Expenses","5942","Hospitality","14/12/2018"
"Wolverhampton City Council","http://opendatacommunities.org/id/metropolitan-district-council/wolverhampton","AMZN Mktp UK M21Q074K4","20.81","Mayoral Expenses","5942","Materials","14/12/2018"
"Wolverhampton City Council","http://opendatacommunities.org/id/metropolitan-district-council/wolverhampton","AMZN Mktp UK M24P29FT4","5.23","Mayoral Expenses","5942","Hospitality","14/12/2018"
"Wolverhampton City Council","http://opendatacommunities.org/id/metropolitan-district-council/wolverhampton","AMZN Mktp UK M239J64B4","3.75","Mayoral Expenses","5942","Materials","14/12/2018"
"Wolverhampton City Council","http://opendatacommunities.org/id/metropolitan-district-council/wolverhampton","WCC MOTO PAYMENTS","62.50","LAC Transitions Team","9399","Client Allowances","14/12/2018"
"Wolverhampton City Council","http://opendatacommunities.org/id/metropolitan-district-council/wolverhampton","ARGOS RETAIL GROUP","21.66","LAC Transitions Team","5310","Client Allowances","14/12/2018"
"Wolverhampton City Council","http://opendatacommunities.org/id/metropolitan-district-council/wolverhampton","CT WOLVERHAMPTON","54.17","LAC Transitions Team","8398","Client Allowances","14/12/2018"
"Wolverhampton City Council","http://opendatacommunities.org/id/metropolitan-district-council/wolverhampton","MARKS&SPENCER PLC SACA","15.00","Delivery & OCE Development","5411","Provisions (Not for resale)","14/12/2018"
"Wolverhampton City Council","http://opendatacommunities.org/id/metropolitan-district-council/wolverhampton","Central Taxis Limited","12.50","B-Safe","4121","Client Transport","14/12/2018"
"Wolverhampton City Council","http://opendatacommunities.org/id/metropolitan-district-council/wolverhampton","THE RANGE","182.88","Bert Williams Leisure Centre","5311","Equipment - Purchase","14/12/2018"
"Wolverhampton City Council","http://opendatacommunities.org/id/metropolitan-district-council/wolverhampton","ASDA SUPERSTORE","32.50","Mayoral Expenses","5411","Provisions (Not for resale)","14/12/2018"
"Wolverhampton City Council","http://opendatacommunities.org/id/metropolitan-district-council/wolverhampton","AMZN Mktp UK M275D8LM4","51.61","Business Support Services","5942","Catering","14/12/2018"
"Wolverhampton City Council","http://opendatacommunities.org/id/metropolitan-district-council/wolverhampton","TESCO STORES 5549","16.00","Business Support Services","5411","Provisions (Not for resale)","14/12/2018"
"Wolverhampton City Council","http://opendatacommunities.org/id/metropolitan-district-council/wolverhampton","WP-CENTRAL TAXIS L","11.60","LAC Education Team (LACE)","4121","Client Transport","14/12/2018"
"Wolverhampton City Council","http://opendatacommunities.org/id/metropolitan-district-council/wolverhampton","Trainline","243.89","LAC Transitions Team","4112","Client Allowances","14/12/2018"
"Wolverhampton City Council","http://opendatacommunities.org/id/metropolitan-district-council/wolverhampton","ROYAL MAIL CHARGES","1.25","Cemeteries","9402","Comms - Postage","14/12/2018"
"Wolverhampton City Council","http://opendatacommunities.org/id/metropolitan-district-council/wolverhampton","Amazon.co.uk M28IH8404","29.97","Strategic ICTS (ICT Serv Budget)","5969","Equipment - Purchase","14/12/2018"
"Wolverhampton City Council","http://opendatacommunities.org/id/metropolitan-district-council/wolverhampton","Amazon.co.uk M265T4LZ4","17.28","Head of Strategic Commissioning � People","5969","Equipment - Purchase","14/12/2018"
"Wolverhampton City Council","http://opendatacommunities.org/id/metropolitan-district-council/wolverhampton","TESCO STORES 5397","14.43","EIP Locality 1","5411","Grant Payments","14/12/2018"
"Wolverhampton City Council","http://opendatacommunities.org/id/metropolitan-district-council/wolverhampton","SECURITY INDUSTRY","220.00","Traffic Signals","7393","Computing - Purchase of Hardware","14/12/2018"
"Wolverhampton City Council","http://opendatacommunities.org/id/metropolitan-district-council/wolverhampton","CardtronicsUK","250.00","MASH","6011","Section 17","14/12/2018"
"Wolverhampton City Council","http://opendatacommunities.org/id/metropolitan-district-council/wolverhampton","SAINSBURYS SACAT 2040","14.75","Duke Street Bungalows","5411","R4010","14/12/2018"
"Wolverhampton City Council","http://opendatacommunities.org/id/metropolitan-district-council/wolverhampton","SCREWFIX DIRECT","73.32","Blakenhall Commty & Healthy Living Ctr","5211","Materials","14/12/2018"
"Wolverhampton City Council","http://opendatacommunities.org/id/metropolitan-district-council/wolverhampton","ARGOS RETAIL GROUP","24.99","EIP Locality 3","5310","Grant Payments","14/12/2018"
"Wolverhampton City Council","http://opendatacommunities.org/id/metropolitan-district-council/wolverhampton","B & Q 1243","-58.33","Community Enablement","5211","Materials","14/12/2018"
"Wolverhampton City Council","http://opendatacommunities.org/id/metropolitan-district-council/wolverhampton","Trainline","8.24","Art Gallery","4112","Public Transport","14/12/2018"
"Wolverhampton City Council","http://opendatacommunities.org/id/metropolitan-district-council/wolverhampton","DVLA VEHICLE TAX","140.00","Trading Standards","9399","Services - Fees and Charges","14/12/2018"
"Wolverhampton City Council","http://opendatacommunities.org/id/metropolitan-district-council/wolverhampton","ARGOS LTD","124.14","LAC Transitions Team","5310","Client Allowances","14/12/2018"
"Wolverhampton City Council","http://opendatacommunities.org/id/metropolitan-district-council/wolverhampton","Trainline","148.86","Court Team","4112","Public Transport","14/12/2018"
"Wolverhampton City Council","http://opendatacommunities.org/id/metropolitan-district-council/wolverhampton","WWW.LOCAL.GOV.UK","199.00","Central Training","7399","Training Expenses","14/12/2018"
"Wolverhampton City Council","http://opendatacommunities.org/id/metropolitan-district-council/wolverhampton","J VAN VLIET BIRMINGHAM","18.45","Creative Studies Delivery Area","5399","Materials for resale","14/12/2018"
"Wolverhampton City Council","http://opendatacommunities.org/id/metropolitan-district-council/wolverhampton","WICKES","17.47","Parks - Ranger Service","5211","Materials","14/12/2018"
"Wolverhampton City Council","http://opendatacommunities.org/id/metropolitan-district-council/wolverhampton","POST OFFICE COUNTER","58.00","Music Support Team","9402","Stationery","14/12/2018"
"Wolverhampton City Council","http://opendatacommunities.org/id/metropolitan-district-council/wolverhampton","Amazon.co.uk M20IJ9O74","233.32","EIP Locality 3","5969","Equipment - Purchase","13/12/2018"
"Wolverhampton City Council","http://opendatacommunities.org/id/metropolitan-district-council/wolverhampton","AMZN Mktp UK M25Z10OW4","34.97","EIP Locality 3","5942","Equipment - Purchase","13/12/2018"
"Wolverhampton City Council","http://opendatacommunities.org/id/metropolitan-district-council/wolverhampton","RADIOTEK LIMITED","125.00","Christmas Festivities","5732","Equipment - Purchase","13/12/2018"
"Wolverhampton City Council","http://opendatacommunities.org/id/metropolitan-district-council/wolverhampton","LIDL UK","11.88","Discretionary Fund","5411","Materials","13/12/2018"
"Wolverhampton City Council","http://opendatacommunities.org/id/metropolitan-district-council/wolverhampton","SAINSBURYS SACAT (2340","14.00","Discretionary Fund","5411","Materials","13/12/2018"
"Wolverhampton City Council","http://opendatacommunities.org/id/metropolitan-district-council/wolverhampton","AMZN Mktp UK M286G7OG4","47.98","Mayoral Expenses","5942","Hospitality","13/12/2018"
"Wolverhampton City Council","http://opendatacommunities.org/id/metropolitan-district-council/wolverhampton","NATIONWIDE","50.00","EIP Locality 2","6011","Grant Payments","13/12/2018"
"Wolverhampton City Council","http://opendatacommunities.org/id/metropolitan-district-council/wolverhampton","B & Q 1112","20.83","Towers Outdoor Education Centre","5211","Fixtures and Fittings - Purchases","13/12/2018"
"Wolverhampton City Council","http://opendatacommunities.org/id/metropolitan-district-council/wolverhampton","B & Q 1112","43.47","Towers Outdoor Education Centre","5211","Fixtures and Fittings - Purchases","13/12/2018"
"Wolverhampton City Council","http://opendatacommunities.org/id/metropolitan-district-council/wolverhampton","CardtronicsUK","240.00","CIN/CP Social Work Unit - Area 6","6011","Financial Assistance In Exceptional Circ","13/12/2018"
"Wolverhampton City Council","http://opendatacommunities.org/id/metropolitan-district-council/wolverhampton","WEST COAST TRAINS - EN","6.00","Economic Development","4112","Public Transport","13/12/2018"
"Wolverhampton City Council","http://opendatacommunities.org/id/metropolitan-district-council/wolverhampton","Virgin Trains","76.90","Fostering Team & Allowances","4112","Public Transport","13/12/2018"
"Wolverhampton City Council","http://opendatacommunities.org/id/metropolitan-district-council/wolverhampton","LBB MOTO","90.00","Register Office","9399","Services - Fees and Charges","13/12/2018"
"Wolverhampton City Council","http://opendatacommunities.org/id/metropolitan-district-council/wolverhampton","AMZN MKTP UK M02XQ2YP4","34.97","Mayoral Expenses","5942","Materials","13/12/2018"
"Wolverhampton City Council","http://opendatacommunities.org/id/metropolitan-district-council/wolverhampton","Trainline","54.23","LAC Transitions Team","4112","Client Allowances","13/12/2018"
"Wolverhampton City Council","http://opendatacommunities.org/id/metropolitan-district-council/wolverhampton","LIDDELL ELECTRICAL DIS","36.33","Caretakers Community Centre","5065","Equipment - R & M","13/12/2018"
"Wolverhampton City Council","http://opendatacommunities.org/id/metropolitan-district-council/wolverhampton","CARVER/WOLVERHAMPTON/L","12.60","Foundation Studies","5211","Materials","13/12/2018"
"Wolverhampton City Council","http://opendatacommunities.org/id/metropolitan-district-council/wolverhampton","WM MORRISONS STORE","16.75","Community Enablement","5411","Equipment - Purchase","13/12/2018"
"Wolverhampton City Council","http://opendatacommunities.org/id/metropolitan-district-council/wolverhampton","SEVERN TRENT WATER","58.64","LAC Transitions Team","4900","Client Allowances","13/12/2018"
"Wolverhampton City Council","http://opendatacommunities.org/id/metropolitan-district-council/wolverhampton","Trainline","158.02","Strategic Asset Management - General","4112","Public Transport","13/12/2018"
"Wolverhampton City Council","http://opendatacommunities.org/id/metropolitan-district-council/wolverhampton","HOMEBASE LTD 103","24.50","Culwell Street Depot","5211","R&M - Departmental planned (external)","13/12/2018"
"Wolverhampton City Council","http://opendatacommunities.org/id/metropolitan-district-council/wolverhampton","TIPPERS WOLVERHAMPTON","31.50","Culwell Street Depot","5072","Equipment - Purchase","13/12/2018"
"Wolverhampton City Council","http://opendatacommunities.org/id/metropolitan-district-council/wolverhampton","WWW.ARGOS.CO.UK","164.95","Vulnerable Young Persons Team","5310","Equipment - Purchase","13/12/2018"
"Wolverhampton City Council","http://opendatacommunities.org/id/metropolitan-district-council/wolverhampton","FINDEL ED LTD","241.25","Blakenhall Resource Centre","5969","Equipment - Purchase","13/12/2018"
"Wolverhampton City Council","http://opendatacommunities.org/id/metropolitan-district-council/wolverhampton","ASDA GROCERIES ONLINE","-7.90","Duke Street Bungalows","5411","Provisions (Not for resale)","13/12/2018"
"Wolverhampton City Council","http://opendatacommunities.org/id/metropolitan-district-council/wolverhampton","ASDA GROCERIES ONLINE","228.10","Duke Street Bungalows","5411","Provisions (Not for resale)","13/12/2018"
"Wolverhampton City Council","http://opendatacommunities.org/id/metropolitan-district-council/wolverhampton","Trainline","-45.00","Education Catering - General Overheads","4112","Public Transport","13/12/2018"
"Wolverhampton City Council","http://opendatacommunities.org/id/metropolitan-district-council/wolverhampton","AMZN Mktp UK M26I78O04","9.38","Global Budgets","5942","Books","13/12/2018"
"Wolverhampton City Council","http://opendatacommunities.org/id/metropolitan-district-council/wolverhampton","B & Q 1243","58.33","Community Enablement","5211","Materials","13/12/2018"
"Wolverhampton City Council","http://opendatacommunities.org/id/metropolitan-district-council/wolverhampton","JURYS INN BELFAST F AN","70.83","Members Expenses","7011","Accommodation Costs","13/12/2018"
"Wolverhampton City Council","http://opendatacommunities.org/id/metropolitan-district-council/wolverhampton","TVLICENSING.CO.UK","150.50","Waste Coll & Recycling Serv General","7392","Services - Fees and Charges","13/12/2018"
"Wolverhampton City Council","http://opendatacommunities.org/id/metropolitan-district-council/wolverhampton","CUMMINGS BROTHERS LOCK","61.25","Community Enablement","7399","Fixtures and Fittings - R&M","13/12/2018"
"Wolverhampton City Council","http://opendatacommunities.org/id/metropolitan-district-council/wolverhampton","Trainline","79.77","Court Team","4112","Public Transport","13/12/2018"
"Wolverhampton City Council","http://opendatacommunities.org/id/metropolitan-district-council/wolverhampton","B&M RETAIL","21.40","Education Catering - General Overheads","5310","Catering","13/12/2018"
"Wolverhampton City Council","http://opendatacommunities.org/id/metropolitan-district-council/wolverhampton","WWW.AIRBAGTEAM.COM","66.67","Fleet Management","5533","Equipment - Purchase","13/12/2018"
"Wolverhampton City Council","http://opendatacommunities.org/id/metropolitan-district-council/wolverhampton","Trainline","34.34","CIN/CP Social Work Unit - Area 4","4112","Section 17","13/12/2018"
"Wolverhampton City Council","http://opendatacommunities.org/id/metropolitan-district-council/wolverhampton","Virgin Trains","194.00","Delivery & OCE Development","4112","Public Transport","13/12/2018"
"Wolverhampton City Council","http://opendatacommunities.org/id/metropolitan-district-council/wolverhampton","GRO HM PASSPORT OFFICE","7.71","LAC Transitions Team","9399","Client Allowances","13/12/2018"
"Wolverhampton City Council","http://opendatacommunities.org/id/metropolitan-district-council/wolverhampton","TFM FARM & COUNTRY SUP","117.37","Northicote Farm","5399","Equipment - Purchase","13/12/2018"
"Wolverhampton City Council","http://opendatacommunities.org/id/metropolitan-district-council/wolverhampton","APPLIANCEDIRECT CO","264.24","Strategic Asset Management Team","5734","Computing - Purchase of Software","12/12/2018"
"Wolverhampton City Council","http://opendatacommunities.org/id/metropolitan-district-council/wolverhampton","TVLICENSING.CO.UK","150.50","Civic Centre","7392","Services - Consultants","12/12/2018"
"Wolverhampton City Council","http://opendatacommunities.org/id/metropolitan-district-council/wolverhampton","PCS AMV Couriers LTD","110.00","Strategic ICTS (ICT Serv Budget)","4214","Comms - Postage","12/12/2018"
"Wolverhampton City Council","http://opendatacommunities.org/id/metropolitan-district-council/wolverhampton","WWW.WMCA.CO.UK","56.50","IMPACT","9399","Services - Fees and Charges","12/12/2018"
"Wolverhampton City Council","http://opendatacommunities.org/id/metropolitan-district-council/wolverhampton","WWW.WMCA.CO.UK","56.50","IMPACT","9399","Services - Fees and Charges","12/12/2018"
"Wolverhampton City Council","http://opendatacommunities.org/id/metropolitan-district-council/wolverhampton","WWW.CARESHOP.CO.UK","90.02","Ernest Bold Court","5999","Materials","12/12/2018"
"Wolverhampton City Council","http://opendatacommunities.org/id/metropolitan-district-council/wolverhampton","WM MORRISON FOOD.COM","115.69","Discretionary Fund","5411","Materials","12/12/2018"
"Wolverhampton City Council","http://opendatacommunities.org/id/metropolitan-district-council/wolverhampton","ARGOS LTD","17.50","LAC Transitions Team","5310","Client Allowances","12/12/2018"
"Wolverhampton City Council","http://opendatacommunities.org/id/metropolitan-district-council/wolverhampton","WWW.WMCA.CO.UK","56.50","IMPACT","9399","Services - Fees and Charges","12/12/2018"
"Wolverhampton City Council","http://opendatacommunities.org/id/metropolitan-district-council/wolverhampton","TIMPSON LTD","5.42","LAC Transitions Team","7251","Accommodation Costs","12/12/2018"
"Wolverhampton City Council","http://opendatacommunities.org/id/metropolitan-district-council/wolverhampton","Trainline","85.56","Court Team","4112","Section 17","12/12/2018"
"Wolverhampton City Council","http://opendatacommunities.org/id/metropolitan-district-council/wolverhampton","ROYAL BK OF SCOTLAND","240.00","CIN/CP Social Work Unit - Area 6","6011","No Recourse to Public Funds","12/12/2018"
"Wolverhampton City Council","http://opendatacommunities.org/id/metropolitan-district-council/wolverhampton","TESCO DELIVERY SAVER2","3.49","Towers Outdoor Education Centre","5968","Provisions (Not for resale)","12/12/2018"
"Wolverhampton City Council","http://opendatacommunities.org/id/metropolitan-district-council/wolverhampton","BAIML","85.00","Towers Outdoor Education Centre","5734","Equipment - Purchase","12/12/2018"
"Wolverhampton City Council","http://opendatacommunities.org/id/metropolitan-district-council/wolverhampton","COSTA COFFEE 43040010","4.29","Economic Development","5814","Educ Trips, Holidays, Outings, Activity","12/12/2018"
"Wolverhampton City Council","http://opendatacommunities.org/id/metropolitan-district-council/wolverhampton","Amazon.co.uk M041Q1YK4","39.31","Citizenship, Language & Learning","5969","Books","12/12/2018"
"Wolverhampton City Council","http://opendatacommunities.org/id/metropolitan-district-council/wolverhampton","Central Taxis Limited","30.17","B-Safe","4121","Client Transport","12/12/2018"
"Wolverhampton City Council","http://opendatacommunities.org/id/metropolitan-district-council/wolverhampton","Central Taxis Limited","30.25","B-Safe","4121","Client Transport","12/12/2018"
"Wolverhampton City Council","http://opendatacommunities.org/id/metropolitan-district-council/wolverhampton","WM MORRISONS STORE","3.00","Ernest Bold Court","5411","Materials","12/12/2018"
"Wolverhampton City Council","http://opendatacommunities.org/id/metropolitan-district-council/wolverhampton","THE WORKS","3.33","Culwell Street Depot","5310","Stationery","12/12/2018"
"Wolverhampton City Council","http://opendatacommunities.org/id/metropolitan-district-council/wolverhampton","POST OFFICE COUNTER","25.00","Upper Pendeford Farm Childrens Home","9402","Comms - Postage","12/12/2018"
"Wolverhampton City Council","http://opendatacommunities.org/id/metropolitan-district-council/wolverhampton","HMCOURTS-SERVICE.G","-20.00","LAC Team","9222","Services - Fees and Charges","12/12/2018"
"Wolverhampton City Council","http://opendatacommunities.org/id/metropolitan-district-council/wolverhampton","Amazon.co.uk M06JT0WV4","43.33","24+ Advanced Learning Loan","5969","Equipment - Purchase","12/12/2018"
"Wolverhampton City Council","http://opendatacommunities.org/id/metropolitan-district-council/wolverhampton","ARGOS LTD","95.00","Technical Support","5310","Equipment - Purchase","12/12/2018"
"Wolverhampton City Council","http://opendatacommunities.org/id/metropolitan-district-council/wolverhampton","AMZN Mktp UK M05JZ6RO4","56.97","24+ Advanced Learning Loan","5942","Equipment - Purchase","12/12/2018"
"Wolverhampton City Council","http://opendatacommunities.org/id/metropolitan-district-council/wolverhampton","CARD FACTORY","4.07","LAC Transitions Team","5947","Client Allowances","12/12/2018"
"Wolverhampton City Council","http://opendatacommunities.org/id/metropolitan-district-council/wolverhampton","AMZN Mktp UK M09CN9WE4","36.92","LAC Transitions Team","5942","Client Allowances","12/12/2018"
"Wolverhampton City Council","http://opendatacommunities.org/id/metropolitan-district-council/wolverhampton","AMZN Mktp UK M04S50RU4","22.94","LAC Transitions Team","5942","Client Allowances","12/12/2018"
"Wolverhampton City Council","http://opendatacommunities.org/id/metropolitan-district-council/wolverhampton","THE POST OFFICE","2.11","EIP Locality 1","9402","Comms - Postage","12/12/2018"
"Wolverhampton City Council","http://opendatacommunities.org/id/metropolitan-district-council/wolverhampton","Amazon.co.uk M09VK4WH4","22.81","Inclusion Support","5969","Books","12/12/2018"
"Wolverhampton City Council","http://opendatacommunities.org/id/metropolitan-district-council/wolverhampton","SAINSBURYS SACAT (2340","12.45","Civic Centre Catering","5411","Provisions (Not for resale)","12/12/2018"
"Wolverhampton City Council","http://opendatacommunities.org/id/metropolitan-district-council/wolverhampton","THE COAL AUTHORITY","135.07","Disposal Costs","9399","Services - Fees and Charges","12/12/2018"
"Wolverhampton City Council","http://opendatacommunities.org/id/metropolitan-district-council/wolverhampton","EAST AND WEST AID","25.00","EIP Locality 3","5931","Grant Payments","12/12/2018"
"Wolverhampton City Council","http://opendatacommunities.org/id/metropolitan-district-council/wolverhampton","ROYAL BK OF SCOTLAND","200.00","Duke Street Bungalows","6011","Provisions (Not for resale)","12/12/2018"
"Wolverhampton City Council","http://opendatacommunities.org/id/metropolitan-district-council/wolverhampton","AMZN Mktp UK M05BY4YX4","10.81","Adoption and Residence Team & Allowances","5942","Stationery","12/12/2018"
"Wolverhampton City Council","http://opendatacommunities.org/id/metropolitan-district-council/wolverhampton","EAST AND WEST AID","133.33","EIP Locality 3","5931","Grant Payments","12/12/2018"
"Wolverhampton City Council","http://opendatacommunities.org/id/metropolitan-district-council/wolverhampton","CITY OF WOLVERHAMPTON","20.83","LAC Transitions Team","9399","Client Allowances","12/12/2018"
"Wolverhampton City Council","http://opendatacommunities.org/id/metropolitan-district-council/wolverhampton","Virgin Trains","-270.00","Scrutiny & Transparency","4112","Public Transport","12/12/2018"
"Wolverhampton City Council","http://opendatacommunities.org/id/metropolitan-district-council/wolverhampton","WICKES","6.67","Community Enablement","5211","Materials","12/12/2018"
"Wolverhampton City Council","http://opendatacommunities.org/id/metropolitan-district-council/wolverhampton","B & Q 1169","22.64","Technician","5211","Materials","11/12/2018"
"Wolverhampton City Council","http://opendatacommunities.org/id/metropolitan-district-council/wolverhampton","AUDIENCE MEDIA LTD","95.00","Visitor Economy - Development","5192","Books","11/12/2018"
"Wolverhampton City Council","http://opendatacommunities.org/id/metropolitan-district-council/wolverhampton","CUMMINGS BROTHERS LOCK","5.00","Adult Services - West","7399","Equipment - Purchase","11/12/2018"
"Wolverhampton City Council","http://opendatacommunities.org/id/metropolitan-district-council/wolverhampton","N & K LTD - 31100550","4.76","LAC Transitions Team","5411","Accommodation Costs","11/12/2018"
"Wolverhampton City Council","http://opendatacommunities.org/id/metropolitan-district-council/wolverhampton","WILKO RETAIL LIMIT","7.62","Delivery & OCE Development","5722","Equipment - Purchase","11/12/2018"
"Wolverhampton City Council","http://opendatacommunities.org/id/metropolitan-district-council/wolverhampton","LOYD 37 CHURCH STREET","200.00","EIP Locality 8","6011","Grant Payments","11/12/2018"
"Wolverhampton City Council","http://opendatacommunities.org/id/metropolitan-district-council/wolverhampton","B&M RETAIL","104.62","LAC Transitions Team","5310","Client Allowances","11/12/2018"
"Wolverhampton City Council","http://opendatacommunities.org/id/metropolitan-district-council/wolverhampton","B & Q 1112","122.50","Towers Outdoor Education Centre","5211","Fixtures and Fittings - Purchases","11/12/2018"
"Wolverhampton City Council","http://opendatacommunities.org/id/metropolitan-district-council/wolverhampton","CROMARTIE HOBBYCRAFT L","165.22","Communications & Marketing - General","5970","Materials","11/12/2018"
"Wolverhampton City Council","http://opendatacommunities.org/id/metropolitan-district-council/wolverhampton","RESPONSTER PLUS PLAN","15.60","City Direct","5734","Computing - Purchase of Software","11/12/2018"
"Wolverhampton City Council","http://opendatacommunities.org/id/metropolitan-district-council/wolverhampton","B & M RETAIL","34.25","LAC Transitions Team","5310","Client Allowances","11/12/2018"
"Wolverhampton City Council","http://opendatacommunities.org/id/metropolitan-district-council/wolverhampton","AMZN Mktp UK M02JC9U44","29.99","Upper Pendeford Farm Childrens Home","5942","Provisions (Not for resale)","11/12/2018"
"Wolverhampton City Council","http://opendatacommunities.org/id/metropolitan-district-council/wolverhampton","HMCOURTS-SERVICE.G","20.00","LAC Team","9222","Services - Fees and Charges","11/12/2018"
"Wolverhampton City Council","http://opendatacommunities.org/id/metropolitan-district-council/wolverhampton","POUNDLAND LTD 1463","5.05","Foundation Studies","5310","Equipment - Purchase","11/12/2018"
"Wolverhampton City Council","http://opendatacommunities.org/id/metropolitan-district-council/wolverhampton","AMZN Mktp UK M04VS8IH4","29.98","24+ Advanced Learning Loan","5942","Equipment - Purchase","11/12/2018"
"Wolverhampton City Council","http://opendatacommunities.org/id/metropolitan-district-council/wolverhampton","AMZN Mktp UK M04SM0I94","36.99","24+ Advanced Learning Loan","5942","Equipment - Purchase","11/12/2018"
"Wolverhampton City Council","http://opendatacommunities.org/id/metropolitan-district-council/wolverhampton","AMZN Mktp UK M09WH2IW4","13.99","Creative Studies Delivery Area","5942","Equipment - Purchase","11/12/2018"
"Wolverhampton City Council","http://opendatacommunities.org/id/metropolitan-district-council/wolverhampton","AMZN Mktp UK M03QM7U34","15.79","Creative Studies Delivery Area","5942","Equipment - Purchase","11/12/2018"
"Wolverhampton City Council","http://opendatacommunities.org/id/metropolitan-district-council/wolverhampton","Amazon.co.uk M025P0RL4","56.76","Community Recreation","5969","Equipment - Purchase","11/12/2018"
"Wolverhampton City Council","http://opendatacommunities.org/id/metropolitan-district-council/wolverhampton","AMZN Mktp UK M02TT0I14","39.80","Specialist Support Service - North","5942","Equipment - Purchase","11/12/2018"
"Wolverhampton City Council","http://opendatacommunities.org/id/metropolitan-district-council/wolverhampton","123-REG.CO.UK","59.94","Technical Support","4816","Computing - Purchase of Software","11/12/2018"
"Wolverhampton City Council","http://opendatacommunities.org/id/metropolitan-district-council/wolverhampton","CardtronicsUK","40.00","EIP Locality 3","6011","Grant Payments to Individuals","11/12/2018"
"Wolverhampton City Council","http://opendatacommunities.org/id/metropolitan-district-council/wolverhampton","WWW.ARGOS.CO.UK","85.79","EIP Locality 3","5310","Grant Payments","11/12/2018"
"Wolverhampton City Council","http://opendatacommunities.org/id/metropolitan-district-council/wolverhampton","WWW.THEAUDIENCEAGENCY.","300.00","Marketing of Exhibitions","5969","Services - Consultants","11/12/2018"
"Wolverhampton City Council","http://opendatacommunities.org/id/metropolitan-district-council/wolverhampton","DUNELM ONLINE ORDER","41.67","LAC Transitions Team","5714","Client Allowances","11/12/2018"
"Wolverhampton City Council","http://opendatacommunities.org/id/metropolitan-district-council/wolverhampton","ASDA GROCERIES ONLINE","47.84","Ernest Bold Court","5411","Provisions (Not for resale)","11/12/2018"
"Wolverhampton City Council","http://opendatacommunities.org/id/metropolitan-district-council/wolverhampton","Virgin Trains","28.00","City Centre","4112","Services - Fees and Charges","11/12/2018"
"Wolverhampton City Council","http://opendatacommunities.org/id/metropolitan-district-council/wolverhampton","Trainline","42.23","Strategy & Development","4112","Public Transport","11/12/2018"
"Wolverhampton City Council","http://opendatacommunities.org/id/metropolitan-district-council/wolverhampton","QUEENSWAY INTERIOR","365.83","LAC Transitions Team","5712","Client Allowances","11/12/2018"
"Wolverhampton City Council","http://opendatacommunities.org/id/metropolitan-district-council/wolverhampton","Virgin Trains","110.00","Members Expenses","4112","Public Transport","11/12/2018"
"Wolverhampton City Council","http://opendatacommunities.org/id/metropolitan-district-council/wolverhampton","TOOLSTATION LTD","21.62","Education Catering - General Overheads","5251","Catering","11/12/2018"
"Wolverhampton City Council","http://opendatacommunities.org/id/metropolitan-district-council/wolverhampton","RICS COM GBP CYBS","199.00","Central Training","8699","Training Expenses","11/12/2018"
"Wolverhampton City Council","http://opendatacommunities.org/id/metropolitan-district-council/wolverhampton","CardtronicsUK","221.85","Childrens with Disabilities Team","6011","Financial Assistance In Exceptional Circ","10/12/2018"
"Wolverhampton City Council","http://opendatacommunities.org/id/metropolitan-district-council/wolverhampton","Virgin Trains","-66.90","Adoption and Residence Team & Allowances","4112","Public Transport","10/12/2018"
"Wolverhampton City Council","http://opendatacommunities.org/id/metropolitan-district-council/wolverhampton","Virgin Trains","-77.80","Adoption and Residence Team & Allowances","4112","Public Transport","10/12/2018"
"Wolverhampton City Council","http://opendatacommunities.org/id/metropolitan-district-council/wolverhampton","B&M RETAIL","41.66","LAC Transitions Team","5310","Independant Living Allowance","10/12/2018"
"Wolverhampton City Council","http://opendatacommunities.org/id/metropolitan-district-council/wolverhampton","BRANDON HIRE 253","35.00","Towers Outdoor Education Centre","5211","Equipment - Purchase","10/12/2018"
"Wolverhampton City Council","http://opendatacommunities.org/id/metropolitan-district-council/wolverhampton","MONA LIFTING LIMITED","370.35","Towers Outdoor Education Centre","5599","Equipment - Purchase","10/12/2018"
"Wolverhampton City Council","http://opendatacommunities.org/id/metropolitan-district-council/wolverhampton","CO-OPERATIVE FOOD","11.97","Aldersley Leisure Village","5411","Provisions (Not for resale)","10/12/2018"
"Wolverhampton City Council","http://opendatacommunities.org/id/metropolitan-district-council/wolverhampton","Virgin Trains","192.00","Fostering Team & Allowances","4112","Public Transport","10/12/2018"
"Wolverhampton City Council","http://opendatacommunities.org/id/metropolitan-district-council/wolverhampton","GOOGLE  ADS9680351324","500.00","Communications & Marketing - General","5968","Subscriptions","10/12/2018"
"Wolverhampton City Council","http://opendatacommunities.org/id/metropolitan-district-council/wolverhampton","WWW.ARGOS.CO.UK","68.94","LAC Transitions Team","5310","Equipment - Purchase","10/12/2018"
"Wolverhampton City Council","http://opendatacommunities.org/id/metropolitan-district-council/wolverhampton","PAYPAL  AULOLAUKLTD","6.50","EIP Locality 8","5732","Grant Payments","10/12/2018"
"Wolverhampton City Council","http://opendatacommunities.org/id/metropolitan-district-council/wolverhampton","PAYPAL  RIGHTVP16","86.29","EIP Locality 8","5621","Grant Payments","10/12/2018"
"Wolverhampton City Council","http://opendatacommunities.org/id/metropolitan-district-council/wolverhampton","AMZ Amazon.co.uk","-383.76","Strategic ICTS (ICT Serv Budget)","5969","Equipment - Purchase","10/12/2018"
"Wolverhampton City Council","http://opendatacommunities.org/id/metropolitan-district-council/wolverhampton","EBUYER (UK) LTD","408.00","Strategic ICTS (ICT Serv Budget)","5722","Equipment - Purchase","10/12/2018"
"Wolverhampton City Council","http://opendatacommunities.org/id/metropolitan-district-council/wolverhampton","TVLICENSING.CO.UK","125.42","LAC Transitions Team","7392","Client Allowances","10/12/2018"
"Wolverhampton City Council","http://opendatacommunities.org/id/metropolitan-district-council/wolverhampton","ASDA GROCERIES ONLINE","1.31","Upper Pendeford Farm Childrens Home","5411","Provisions (Not for resale)","10/12/2018"
"Wolverhampton City Council","http://opendatacommunities.org/id/metropolitan-district-council/wolverhampton","ASDA GROCERIES ONLINE","149.35","Upper Pendeford Farm Childrens Home","5411","Provisions (Not for resale)","10/12/2018"
"Wolverhampton City Council","http://opendatacommunities.org/id/metropolitan-district-council/wolverhampton","Amazon Prime M02L04KK4","6.66","Upper Pendeford Farm Childrens Home","5968","Subscriptions","10/12/2018"
"Wolverhampton City Council","http://opendatacommunities.org/id/metropolitan-district-council/wolverhampton","AMZN Mktp UK M02SE7KB4","16.03","Upper Pendeford Farm Childrens Home","5942","Provisions (Resale)","10/12/2018"
"Wolverhampton City Council","http://opendatacommunities.org/id/metropolitan-district-council/wolverhampton","AMZN Mktp UK M052D0SZ4","17.90","Upper Pendeford Farm Childrens Home","5942","Provisions (Not for resale)","10/12/2018"
"Wolverhampton City Council","http://opendatacommunities.org/id/metropolitan-district-council/wolverhampton","Amazon.co.uk M03X19SA4","34.98","Upper Pendeford Farm Childrens Home","5969","Equipment - Purchase","10/12/2018"
"Wolverhampton City Council","http://opendatacommunities.org/id/metropolitan-district-council/wolverhampton","ASDA GROCERIES ONLINE","5.00","Upper Pendeford Farm Childrens Home","5411","Provisions (Not for resale)","10/12/2018"
"Wolverhampton City Council","http://opendatacommunities.org/id/metropolitan-district-council/wolverhampton","Trainline","50.77","Service Director City Environment","4112","Public Transport","10/12/2018"
"Wolverhampton City Council","http://opendatacommunities.org/id/metropolitan-district-council/wolverhampton","JOHNSONS","5.40","Service Wide","7210","Laundry Expenses","10/12/2018"
"Wolverhampton City Council","http://opendatacommunities.org/id/metropolitan-district-council/wolverhampton","Wix.com","46.57","Technical Support","5817","Computing - Purchase of Software","10/12/2018"
"Wolverhampton City Council","http://opendatacommunities.org/id/metropolitan-district-council/wolverhampton","123 REG R/T","15.99","Technical Support","5968","Subscriptions","10/12/2018"
"Wolverhampton City Council","http://opendatacommunities.org/id/metropolitan-district-council/wolverhampton","Amazon.co.uk M04UY07C4","30.87","Global Budgets","5969","Books","10/12/2018"
"Wolverhampton City Council","http://opendatacommunities.org/id/metropolitan-district-council/wolverhampton","WICKES","5.82","Community Enablement","5211","Equipment - R & M","10/12/2018"
"Wolverhampton City Council","http://opendatacommunities.org/id/metropolitan-district-council/wolverhampton","Amazon.co.uk M01OC6SC4","41.62","Educational Studies Delivery Area","5969","Books","10/12/2018"
"Wolverhampton City Council","http://opendatacommunities.org/id/metropolitan-district-council/wolverhampton","ASDA SUPERSTORE","10.00","LAC Transitions Team","5411","Client Allowances","10/12/2018"
"Wolverhampton City Council","http://opendatacommunities.org/id/metropolitan-district-council/wolverhampton","123 REG R/T","39.96","Audience Development","5968","Subscriptions","10/12/2018"
"Wolverhampton City Council","http://opendatacommunities.org/id/metropolitan-district-council/wolverhampton","ASDA GROCERIES ONLINE","69.79","Ernest Bold Court","5411","Provisions (Not for resale)","10/12/2018"
"Wolverhampton City Council","http://opendatacommunities.org/id/metropolitan-district-council/wolverhampton","Virgin Trains","-90.00","Scrutiny & Transparency","4112","Public Transport","10/12/2018"
"Wolverhampton City Council","http://opendatacommunities.org/id/metropolitan-district-council/wolverhampton","Trainline","69.60","Service Director Adults","4112","Public Transport","10/12/2018"
"Wolverhampton City Council","http://opendatacommunities.org/id/metropolitan-district-council/wolverhampton","PAYPAL  GRADKOINTER","23.00","Environmental Protection","5047","Equipment - Purchase","10/12/2018"
"Wolverhampton City Council","http://opendatacommunities.org/id/metropolitan-district-council/wolverhampton","HUGHES","416.67","LAC Transitions Team","5732","Client Allowances","10/12/2018"
"Wolverhampton City Council","http://opendatacommunities.org/id/metropolitan-district-council/wolverhampton","Trainline","51.59","CIN/CP Social Work Unit - Area 4","4112","Section 17","10/12/2018"
"Wolverhampton City Council","http://opendatacommunities.org/id/metropolitan-district-council/wolverhampton","PAYPAL  ACCOUNTSPAY","170.00","Central Training","5999","Training Expenses","10/12/2018"
"Wolverhampton City Council","http://opendatacommunities.org/id/metropolitan-district-council/wolverhampton","ASDA SUPERSTORE","7.99","Civic Centre Catering","5411","Provisions (Not for resale)","10/12/2018"
"Wolverhampton City Council","http://opendatacommunities.org/id/metropolitan-district-council/wolverhampton","EB  NLGN ANNUAL CONFER","189.24","Member Training","7399","Equipment - Purchase","10/12/2018"
"Wolverhampton City Council","http://opendatacommunities.org/id/metropolitan-district-council/wolverhampton","POST OFFICE COUNTER","7.30","Fleet Management","9402","Comms - Postage","10/12/2018"
"Wolverhampton City Council","http://opendatacommunities.org/id/metropolitan-district-council/wolverhampton","THE POST OFFICE","58.00","Music Support Team","9402","Stationery","10/12/2018"
"Wolverhampton City Council","http://opendatacommunities.org/id/metropolitan-district-council/wolverhampton","WP-CENTRAL TAXIS L","61.50","CIN/CP Social Work Unit - Area 8","4121","Section 17","10/12/2018"
"Wolverhampton City Council","http://opendatacommunities.org/id/metropolitan-district-council/wolverhampton","WWW.FIREPROTECTIONSHOP","25.95","Building Consultancy","5999","Equipment - Purchase","10/12/2018"
"Wolverhampton City Council","http://opendatacommunities.org/id/metropolitan-district-council/wolverhampton","WWW.GOV.UK","40.00","Private Sector Housing","8999","Services - Professional Fees","10/12/2018"
"Wolverhampton City Council","http://opendatacommunities.org/id/metropolitan-district-council/wolverhampton","AMZN MKTP UK M03QA92O4","87.42","Northicote Farm","5942","Equipment - Purchase","10/12/2018"
"Wolverhampton City Council","http://opendatacommunities.org/id/metropolitan-district-council/wolverhampton","LIDDELL ELECTRICAL DIS","57.69","Street Lighting Maintenance","5065","Materials","07/12/2018"
"Wolverhampton City Council","http://opendatacommunities.org/id/metropolitan-district-council/wolverhampton","ARGOS RETAIL GROUP","85.82","Bradley Resource Centre","5310","Equipment - Purchase","07/12/2018"
"Wolverhampton City Council","http://opendatacommunities.org/id/metropolitan-district-council/wolverhampton","EB  TEG TACTILE ACCESS","59.88","Research & Development","7399","Training Expenses","07/12/2018"
"Wolverhampton City Council","http://opendatacommunities.org/id/metropolitan-district-council/wolverhampton","POST OFFICE COUNTER","23.20","Adoption and Residence Team & Allowances","9402","Comms - Postage","07/12/2018"
"Wolverhampton City Council","http://opendatacommunities.org/id/metropolitan-district-council/wolverhampton","B & Q 1112","2.70","Towers Outdoor Education Centre","5211","Fixtures and Fittings - Purchases","07/12/2018"
"Wolverhampton City Council","http://opendatacommunities.org/id/metropolitan-district-council/wolverhampton","AMZN MKTP UK M08TH86O4","62.10","Communications & Marketing - General","5942","Books","07/12/2018"
"Wolverhampton City Council","http://opendatacommunities.org/id/metropolitan-district-council/wolverhampton","FACEBK  SS3WXJJAR2","441.60","Communications & Marketing - General","7311","Marketing \ Non-staff advertising","07/12/2018"
"Wolverhampton City Council","http://opendatacommunities.org/id/metropolitan-district-council/wolverhampton","NAMESCO","34.99","City Direct","4816","Computing - Purchase of Software","07/12/2018"
"Wolverhampton City Council","http://opendatacommunities.org/id/metropolitan-district-council/wolverhampton","ARGOS LTD","54.17","LAC Transitions Team","5310","Client Allowances","07/12/2018"
"Wolverhampton City Council","http://opendatacommunities.org/id/metropolitan-district-council/wolverhampton","PAYPAL  PARTS PLACE","9.23","LAC Transitions Team","5331","Client Allowances","07/12/2018"
"Wolverhampton City Council","http://opendatacommunities.org/id/metropolitan-district-council/wolverhampton","WILKO RETAIL LIMIT","2.08","LAC Transitions Team","5722","Client Allowances","07/12/2018"
"Wolverhampton City Council","http://opendatacommunities.org/id/metropolitan-district-council/wolverhampton","B&M RETAIL","16.66","LAC Transitions Team","5310","Client Allowances","07/12/2018"
"Wolverhampton City Council","http://opendatacommunities.org/id/metropolitan-district-council/wolverhampton","B&M RETAIL","6.23","LAC Transitions Team","5310","Client Allowances","07/12/2018"
"Wolverhampton City Council","http://opendatacommunities.org/id/metropolitan-district-council/wolverhampton","B & Q 1243","40.00","LAC Transitions Team","5211","Client Allowances","07/12/2018"
"Wolverhampton City Council","http://opendatacommunities.org/id/metropolitan-district-council/wolverhampton","TESCO STORES 2606","6.77","LAC Transitions Team","5411","Client Allowances","07/12/2018"
"Wolverhampton City Council","http://opendatacommunities.org/id/metropolitan-district-council/wolverhampton","PREMIER INN","-74.50","LAC Team","3811","Accommodation Costs","07/12/2018"
"Wolverhampton City Council","http://opendatacommunities.org/id/metropolitan-district-council/wolverhampton","Trainline","37.90","LAC Transitions Team","4112","Client Allowances","07/12/2018"
"Wolverhampton City Council","http://opendatacommunities.org/id/metropolitan-district-council/wolverhampton","WWW.ARGOS.CO.UK","20.00","LAC Team","5310","Financial Assistance In Exceptional Circ","07/12/2018"
"Wolverhampton City Council","http://opendatacommunities.org/id/metropolitan-district-council/wolverhampton","WWW.WMCA.CO.UK","53.60","24+ Advanced Learning Loan","9399","Public Transport","07/12/2018"
"Wolverhampton City Council","http://opendatacommunities.org/id/metropolitan-district-council/wolverhampton","B&M RETAIL","48.30","LAC Transitions Team","5310","Client Allowances","07/12/2018"
"Wolverhampton City Council","http://opendatacommunities.org/id/metropolitan-district-council/wolverhampton","ROYAL CARPETS","150.00","LAC Transitions Team","5713","Client Allowances","07/12/2018"
"Wolverhampton City Council","http://opendatacommunities.org/id/metropolitan-district-council/wolverhampton","WWW.WOLVERHAMPTON.GOV.","500.00","LAC Transitions Team","9399","Client Allowances","07/12/2018"
"Wolverhampton City Council","http://opendatacommunities.org/id/metropolitan-district-council/wolverhampton","WWW.WOLVERHAMPTON.GOV.","500.00","LAC Transitions Team","9399","Client Allowances","07/12/2018"
"Wolverhampton City Council","http://opendatacommunities.org/id/metropolitan-district-council/wolverhampton","WATERSTONES","20.00","Archives","5942","Books","07/12/2018"
"Wolverhampton City Council","http://opendatacommunities.org/id/metropolitan-district-council/wolverhampton","VIRGIN MEDIS PYMTS","15.00","Community Enablement","4814","Comms - Telephone Call charges","07/12/2018"
"Wolverhampton City Council","http://opendatacommunities.org/id/metropolitan-district-council/wolverhampton","Virgin Trains","-7.80","Children & Young People Support Costs","4112","Public Transport","07/12/2018"
"Wolverhampton City Council","http://opendatacommunities.org/id/metropolitan-district-council/wolverhampton","Virgin Trains","7.80","Children & Young People Support Costs","4112","Public Transport","07/12/2018"
"Wolverhampton City Council","http://opendatacommunities.org/id/metropolitan-district-council/wolverhampton","Virgin Trains","7.80","Children & Young People Support Costs","4112","Public Transport","07/12/2018"
"Wolverhampton City Council","http://opendatacommunities.org/id/metropolitan-district-council/wolverhampton","B&M RETAIL","9.98","Technical Support","5310","Equipment - Purchase","07/12/2018"
"Wolverhampton City Council","http://opendatacommunities.org/id/metropolitan-district-council/wolverhampton","Wix.com","93.13","Technical Support","5817","Computing - Purchase of Software","07/12/2018"
"Wolverhampton City Council","http://opendatacommunities.org/id/metropolitan-district-council/wolverhampton","Trainline","7.94","Art Gallery","4112","Public Transport","07/12/2018"
"Wolverhampton City Council","http://opendatacommunities.org/id/metropolitan-district-council/wolverhampton","Trainline","6.77","Court Team","4112","Public Transport","07/12/2018"
"Wolverhampton City Council","http://opendatacommunities.org/id/metropolitan-district-council/wolverhampton","Trainline","64.81","Court Team","4112","Public Transport","07/12/2018"
"Wolverhampton City Council","http://opendatacommunities.org/id/metropolitan-district-council/wolverhampton","THE SOLICITORS GROUP","436.00","Central Training","8244","Training Expenses","07/12/2018"
"Wolverhampton City Council","http://opendatacommunities.org/id/metropolitan-district-council/wolverhampton","J VAN VLIET BIRMINGHAM","66.75","Creative Studies Delivery Area","5399","Materials for resale","07/12/2018"
"Wolverhampton City Council","http://opendatacommunities.org/id/metropolitan-district-council/wolverhampton","WWW.STUDIO-MUSIC.C","54.95","Music Support Team","2741","Equipment - R & M","07/12/2018"
"Wolverhampton City Council","http://opendatacommunities.org/id/metropolitan-district-council/wolverhampton","Amazon.co.uk M08FI5D04","7.98","EIP Locality 7","5969","Books","07/12/2018"
"Wolverhampton City Council","http://opendatacommunities.org/id/metropolitan-district-council/wolverhampton","WWW.ICO.GOV.UK","40.00","Members Expenses","9399","Subscriptions","07/12/2018"
"Wolverhampton City Council","http://opendatacommunities.org/id/metropolitan-district-council/wolverhampton","WEST MID TRAVEL","436.90","IMPACT","4131","Public Transport","06/12/2018"
"Wolverhampton City Council","http://opendatacommunities.org/id/metropolitan-district-council/wolverhampton","Virgin Trains","73.30","Director of Education","4112","Public Transport","06/12/2018"
"Wolverhampton City Council","http://opendatacommunities.org/id/metropolitan-district-council/wolverhampton","WM MORRISON FOOD.COM","111.66","Discretionary Fund","5411","Materials","06/12/2018"
"Wolverhampton City Council","http://opendatacommunities.org/id/metropolitan-district-council/wolverhampton","WOLVERHAMPTON CC","2.50","Headstart Phase 3","7523","Parking Fees","06/12/2018"
"Wolverhampton City Council","http://opendatacommunities.org/id/metropolitan-district-council/wolverhampton","TESCO STORES 5503","5.00","Bradley Resource Centre","5411","Cleaning Supplies and Materials","06/12/2018"
"Wolverhampton City Council","http://opendatacommunities.org/id/metropolitan-district-council/wolverhampton","WOLVERHAMPTON SST","6.20","Research & Development","4112","Public Transport","06/12/2018"
"Wolverhampton City Council","http://opendatacommunities.org/id/metropolitan-district-council/wolverhampton","THE FLOWER STALL","20.83","Mayoral Expenses","5992","Hospitality","06/12/2018"
"Wolverhampton City Council","http://opendatacommunities.org/id/metropolitan-district-council/wolverhampton","WWW.ARGOS.CO.UK","126.60","LAC Transitions Team","5310","Client Allowances","06/12/2018"
"Wolverhampton City Council","http://opendatacommunities.org/id/metropolitan-district-council/wolverhampton","ARGOS RETAIL GROUP","106.63","LAC Transitions Team","5310","Client Allowances","06/12/2018"
"Wolverhampton City Council","http://opendatacommunities.org/id/metropolitan-district-council/wolverhampton","ARGOS RETAIL GROUP","412.44","LAC Transitions Team","5310","Client Allowances","06/12/2018"
"Wolverhampton City Council","http://opendatacommunities.org/id/metropolitan-district-council/wolverhampton","ROYAL CARPETS","125.00","LAC Transitions Team","5713","Client Allowances","06/12/2018"
"Wolverhampton City Council","http://opendatacommunities.org/id/metropolitan-district-council/wolverhampton","Virgin Trains","-77.80","Adoption and Residence Team & Allowances","4112","Public Transport","06/12/2018"
"Wolverhampton City Council","http://opendatacommunities.org/id/metropolitan-district-council/wolverhampton","MONARCH CLEANERS LTD","304.50","Towers Outdoor Education Centre","7216","Laundry Expenses","06/12/2018"
"Wolverhampton City Council","http://opendatacommunities.org/id/metropolitan-district-council/wolverhampton","HARLECH FOODSERVICE LT","195.73","Towers Outdoor Education Centre","5422","Provisions (Not for resale)","06/12/2018"
"Wolverhampton City Council","http://opendatacommunities.org/id/metropolitan-district-council/wolverhampton","JOE BROWN CLIMBING SHO","149.33","Towers Outdoor Education Centre","5655","Equipment - Purchase","06/12/2018"
"Wolverhampton City Council","http://opendatacommunities.org/id/metropolitan-district-council/wolverhampton","FUEL CARD SERVICES LTD","439.30","Towers Outdoor Education Centre","7399","Petrol","06/12/2018"
"Wolverhampton City Council","http://opendatacommunities.org/id/metropolitan-district-council/wolverhampton","HN NUTTALL LTD","345.52","Towers Outdoor Education Centre","5085","Provisions (Not for resale)","06/12/2018"
"Wolverhampton City Council","http://opendatacommunities.org/id/metropolitan-district-council/wolverhampton","C L JONES HEAD OFFICE","34.03","Towers Outdoor Education Centre","5211","Fixtures and Fittings - Purchases","06/12/2018"
"Wolverhampton City Council","http://opendatacommunities.org/id/metropolitan-district-council/wolverhampton","BLOXWICH  SST","4.25","Economic Development","4112","Public Transport","06/12/2018"
"Wolverhampton City Council","http://opendatacommunities.org/id/metropolitan-district-council/wolverhampton","POST OFFICE COUNTER","354.00","Fostering Team & Allowances","9402","Comms - Postage","06/12/2018"
"Wolverhampton City Council","http://opendatacommunities.org/id/metropolitan-district-council/wolverhampton","ASDA SUPERSTORE","4.05","Mayoral Expenses","5411","Hospitality","06/12/2018"
"Wolverhampton City Council","http://opendatacommunities.org/id/metropolitan-district-council/wolverhampton","SCREWFIX DIRECT LT","22.45","Cemeteries","5211","Materials","06/12/2018"
"Wolverhampton City Council","http://opendatacommunities.org/id/metropolitan-district-council/wolverhampton","ASDA SUPERSTORE","10.00","Cemeteries","5411","Provisions (Not for resale)","06/12/2018"
"Wolverhampton City Council","http://opendatacommunities.org/id/metropolitan-district-council/wolverhampton","ASDA SUPERSTORE","32.75","Cemeteries","5411","Provisions (Not for resale)","06/12/2018"
"Wolverhampton City Council","http://opendatacommunities.org/id/metropolitan-district-council/wolverhampton","JOHNSONS","9.60","Cemeteries","7210","Equipment - R & M","06/12/2018"
"Wolverhampton City Council","http://opendatacommunities.org/id/metropolitan-district-council/wolverhampton","ASDA SUPERSTORE","179.17","LAC Transitions Team","5411","Client Allowances","06/12/2018"
"Wolverhampton City Council","http://opendatacommunities.org/id/metropolitan-district-council/wolverhampton","ASDA SUPERSTORE","198.54","LAC Transitions Team","5411","Client Allowances","06/12/2018"
"Wolverhampton City Council","http://opendatacommunities.org/id/metropolitan-district-council/wolverhampton","Virgin Trains","-109.80","LAC Team","4112","Public Transport","06/12/2018"
"Wolverhampton City Council","http://opendatacommunities.org/id/metropolitan-district-council/wolverhampton","POST OFFICE COUNTER","6.50","LAC Team","9402","Comms - Postage","06/12/2018"
"Wolverhampton City Council","http://opendatacommunities.org/id/metropolitan-district-council/wolverhampton","Virgin Trains","44.00","Strategic Financial Services","4112","Public Transport","06/12/2018"
"Wolverhampton City Council","http://opendatacommunities.org/id/metropolitan-district-council/wolverhampton","Trainline","-184.00","Service Director Disab & Mental Health","4112","Public Transport","06/12/2018"
"Wolverhampton City Council","http://opendatacommunities.org/id/metropolitan-district-council/wolverhampton","POUNDLAND LTD 1463","13.10","Foundation Studies","5310","Equipment - Purchase","06/12/2018"
"Wolverhampton City Council","http://opendatacommunities.org/id/metropolitan-district-council/wolverhampton","WILKO RETAIL LIMIT","45.35","Foundation Studies","5722","Equipment - Purchase","06/12/2018"
"Wolverhampton City Council","http://opendatacommunities.org/id/metropolitan-district-council/wolverhampton","H S HOMMERS&SONS (D B)","50.00","EIP Locality 1","5261","Equipment - Purchase","06/12/2018"
"Wolverhampton City Council","http://opendatacommunities.org/id/metropolitan-district-council/wolverhampton","CardtronicsUK","200.00","MASH","6011","Section 17","06/12/2018"
"Wolverhampton City Council","http://opendatacommunities.org/id/metropolitan-district-council/wolverhampton","AMZN Mktp UK M07479Q24","68.24","Community Recreation","5942","Equipment - R & M","06/12/2018"
"Wolverhampton City Council","http://opendatacommunities.org/id/metropolitan-district-council/wolverhampton","AMZN Mktp UK M08IG18M4","11.98","Community Recreation","5942","Equipment - Health and Safety","06/12/2018"
"Wolverhampton City Council","http://opendatacommunities.org/id/metropolitan-district-council/wolverhampton","AMZN Mktp UK M06EF0BL4","204.22","Community Recreation","5942","Equipment - R & M","06/12/2018"
"Wolverhampton City Council","http://opendatacommunities.org/id/metropolitan-district-council/wolverhampton","AMZN Mktp UK M01642804","160.15","Community Recreation","5942","Equipment - Purchase","06/12/2018"
"Wolverhampton City Council","http://opendatacommunities.org/id/metropolitan-district-council/wolverhampton","IDC WRISTBANDS","115.50","Technical Support","5699","Equipment - Purchase","06/12/2018"
"Wolverhampton City Council","http://opendatacommunities.org/id/metropolitan-district-council/wolverhampton","B & Q 1243","3.33","Ernest Bold Court","5211","Equipment - R & M","06/12/2018"
"Wolverhampton City Council","http://opendatacommunities.org/id/metropolitan-district-council/wolverhampton","Trainline","7.94","Education And Access","4112","Public Transport","06/12/2018"
"Wolverhampton City Council","http://opendatacommunities.org/id/metropolitan-district-council/wolverhampton","WP-CENTRAL TAXIS L","31.20","LAC Team","4121","Client Transport","06/12/2018"
"Wolverhampton City Council","http://opendatacommunities.org/id/metropolitan-district-council/wolverhampton","WWW.ICO.GOV.UK","40.00","Members Expenses","9399","Subscriptions","06/12/2018"
"Wolverhampton City Council","http://opendatacommunities.org/id/metropolitan-district-council/wolverhampton","WWW.ICO.GOV.UK","40.00","Members Expenses","9399","Subscriptions","06/12/2018"
"Wolverhampton City Council","http://opendatacommunities.org/id/metropolitan-district-council/wolverhampton","Virgin Trains","35.10","Members Expenses","4112","Public Transport","06/12/2018"
"Wolverhampton City Council","http://opendatacommunities.org/id/metropolitan-district-council/wolverhampton","SAINSBURYS (2340)","9.20","Civic Centre Catering","5411","Provisions (Not for resale)","06/12/2018"
"Wolverhampton City Council","http://opendatacommunities.org/id/metropolitan-district-council/wolverhampton","Trainline","9.92","CIN/CP Social Work Unit - Area 8","4112","Section 17","06/12/2018"
"Wolverhampton City Council","http://opendatacommunities.org/id/metropolitan-district-council/wolverhampton","ARGOS LTD","-8.33","Duke Street Bungalows","5310","R4010","06/12/2018"
"Wolverhampton City Council","http://opendatacommunities.org/id/metropolitan-district-council/wolverhampton","ARGOS LTD","33.32","Duke Street Bungalows","5310","R4010","06/12/2018"
"Wolverhampton City Council","http://opendatacommunities.org/id/metropolitan-district-council/wolverhampton","CITY OF WOLVERHAMPTON","25.00","LAC Team","9399","Services - Fees and Charges","06/12/2018"
"Wolverhampton City Council","http://opendatacommunities.org/id/metropolitan-district-council/wolverhampton","Virgin Trains","19.70","Information Governance Team","4112","Public Transport","06/12/2018"
"Wolverhampton City Council","http://opendatacommunities.org/id/metropolitan-district-council/wolverhampton","CARVER/WOLVERHAMPTON/L","15.38","Northicote Farm","5211","Equipment - Purchase","06/12/2018"
"Wolverhampton City Council","http://opendatacommunities.org/id/metropolitan-district-council/wolverhampton","GRO HM PASSPORT OFFICE","9.25","LAC Team","9399","Services - Fees and Charges","05/12/2018"
"Wolverhampton City Council","http://opendatacommunities.org/id/metropolitan-district-council/wolverhampton","Amazon.co.uk M04O62BI4","6.99","EIP Locality 7","5969","Books","05/12/2018"
"Wolverhampton City Council","http://opendatacommunities.org/id/metropolitan-district-council/wolverhampton","HIGHSTREET VOCUHERS","203.50","IMPACT","8641","Educ Trips, Holidays, Outings, Activity","05/12/2018"
"Wolverhampton City Council","http://opendatacommunities.org/id/metropolitan-district-council/wolverhampton","AMZN MKTP UK M05900H54","32.24","Private Hire Vehicles","5942","Books","05/12/2018"
"Wolverhampton City Council","http://opendatacommunities.org/id/metropolitan-district-council/wolverhampton","WEDNESFIELD RADIO CARS","180.00","Private Hire Drivers","4121","Client Transport","05/12/2018"
"Wolverhampton City Council","http://opendatacommunities.org/id/metropolitan-district-council/wolverhampton","Trainline","83.84","CIN/CP Social Work Unit - Area 6","4112","Public Transport","05/12/2018"
"Wolverhampton City Council","http://opendatacommunities.org/id/metropolitan-district-council/wolverhampton","TESCO STORES 5194","74.85","Towers Outdoor Education Centre","5411","Provisions (Not for resale)","05/12/2018"
"Wolverhampton City Council","http://opendatacommunities.org/id/metropolitan-district-council/wolverhampton","Virgin Trains","92.20","Delivery & OCE Development","4112","Public Transport","05/12/2018"
"Wolverhampton City Council","http://opendatacommunities.org/id/metropolitan-district-council/wolverhampton","ASDA SUPERSTORE","44.49","Education And Access","5411","Hospitality","05/12/2018"
"Wolverhampton City Council","http://opendatacommunities.org/id/metropolitan-district-council/wolverhampton","Virgin Trains","209.60","Fostering Team & Allowances","4112","Public Transport","05/12/2018"
"Wolverhampton City Council","http://opendatacommunities.org/id/metropolitan-district-council/wolverhampton","SAINSBURYS PFS (1340)","1.67","Mayoral Expenses","5541","Vehicle Maintenance - Repairs","05/12/2018"
"Wolverhampton City Council","http://opendatacommunities.org/id/metropolitan-district-council/wolverhampton","HOTJAR","81.95","City Direct","5045","Computing - Purchase of Hardware","05/12/2018"
"Wolverhampton City Council","http://opendatacommunities.org/id/metropolitan-district-council/wolverhampton","Amazon.co.uk M082W6HN4","319.76","Strategic ICTS (ICT Serv Budget)","5969","Equipment - Purchase","05/12/2018"
"Wolverhampton City Council","http://opendatacommunities.org/id/metropolitan-district-council/wolverhampton","ASDA SUPERSTORE","9.00","Upper Pendeford Farm Childrens Home","5411","Educ Trips, Holidays, Outings, Activity","05/12/2018"
"Wolverhampton City Council","http://opendatacommunities.org/id/metropolitan-district-council/wolverhampton","ASDA SUPERSTORE","41.09","Upper Pendeford Farm Childrens Home","5411","Educ Trips, Holidays, Outings, Activity","05/12/2018"
"Wolverhampton City Council","http://opendatacommunities.org/id/metropolitan-district-council/wolverhampton","HOME BARGAINS WOLVERHA","78.55","Upper Pendeford Farm Childrens Home","5251","Educ Trips, Holidays, Outings, Activity","05/12/2018"
"Wolverhampton City Council","http://opendatacommunities.org/id/metropolitan-district-council/wolverhampton","BRITANNIA","68.00","MASH","7011","No Recourse to Public Funds","05/12/2018"
"Wolverhampton City Council","http://opendatacommunities.org/id/metropolitan-district-council/wolverhampton","ROYAL CARPETS","150.00","LAC Transitions Team","5713","Client Allowances","05/12/2018"
"Wolverhampton City Council","http://opendatacommunities.org/id/metropolitan-district-council/wolverhampton","CardtronicsUK","200.00","CAT","6011","Section 17","05/12/2018"
"Wolverhampton City Council","http://opendatacommunities.org/id/metropolitan-district-council/wolverhampton","ROOKERY STREET-WEDNES","100.00","Duke Street Bungalows","6011","Provisions (Not for resale)","05/12/2018"
"Wolverhampton City Council","http://opendatacommunities.org/id/metropolitan-district-council/wolverhampton","ARGOS LTD","14.99","Duke Street Bungalows","5310","R4010","05/12/2018"
"Wolverhampton City Council","http://opendatacommunities.org/id/metropolitan-district-council/wolverhampton","ARGOS LTD","40.00","Duke Street Bungalows","5310","R4010","05/12/2018"
"Wolverhampton City Council","http://opendatacommunities.org/id/metropolitan-district-council/wolverhampton","ARGOS LTD","37.98","Duke Street Bungalows","5310","R4010","05/12/2018"
"Wolverhampton City Council","http://opendatacommunities.org/id/metropolitan-district-council/wolverhampton","AMZN MKTP UK M08WH8HA4","41.94","SEN Sensory Inclusion","5942","Equipment - Purchase","05/12/2018"
"Wolverhampton City Council","http://opendatacommunities.org/id/metropolitan-district-council/wolverhampton","AMZN MKTP UK M00JQ1H24","53.89","SEN Sensory Inclusion","5942","Equipment - Purchase","05/12/2018"
"Wolverhampton City Council","http://opendatacommunities.org/id/metropolitan-district-council/wolverhampton","Trainline","113.45","Education Catering - General Overheads","4112","Public Transport","05/12/2018"
"Wolverhampton City Council","http://opendatacommunities.org/id/metropolitan-district-council/wolverhampton","Cross Country Trains","7.80","Head of Strategic Commissioning � People","4112","Public Transport","05/12/2018"
"Wolverhampton City Council","http://opendatacommunities.org/id/metropolitan-district-council/wolverhampton","ADVANCED CARD BURE","24.13","Technical Support","5099","Equipment - Purchase","05/12/2018"
"Wolverhampton City Council","http://opendatacommunities.org/id/metropolitan-district-council/wolverhampton","USB2U","340.50","Technical Support","2741","Publications","05/12/2018"
"Wolverhampton City Council","http://opendatacommunities.org/id/metropolitan-district-council/wolverhampton","WWW.ARGOS.CO.UK","154.16","EIP Locality 3","5310","Grant Payments","05/12/2018"
"Wolverhampton City Council","http://opendatacommunities.org/id/metropolitan-district-council/wolverhampton","B & Q 1243","5.82","Learning Disabilities Management","5211","Equipment - R & M","05/12/2018"
"Wolverhampton City Council","http://opendatacommunities.org/id/metropolitan-district-council/wolverhampton","Amazon Prime M03ZK3HW4","7.99","Education And Access","5968","Subscriptions","05/12/2018"
"Wolverhampton City Council","http://opendatacommunities.org/id/metropolitan-district-council/wolverhampton","Central Taxis Limited","7.80","LAC Team","4121","Client Transport","05/12/2018"
"Wolverhampton City Council","http://opendatacommunities.org/id/metropolitan-district-council/wolverhampton","Central Taxis Limited","7.80","LAC Team","4121","Client Transport","05/12/2018"
"Wolverhampton City Council","http://opendatacommunities.org/id/metropolitan-district-council/wolverhampton","Central Taxis Limited","7.80","LAC Team","4121","Client Transport","05/12/2018"
"Wolverhampton City Council","http://opendatacommunities.org/id/metropolitan-district-council/wolverhampton","Central Taxis Limited","7.80","LAC Team","4121","Client Transport","05/12/2018"
"Wolverhampton City Council","http://opendatacommunities.org/id/metropolitan-district-council/wolverhampton","THE COAL AUTHORITY","850.37","Disposal Costs","9399","Services - Fees and Charges","05/12/2018"
"Wolverhampton City Council","http://opendatacommunities.org/id/metropolitan-district-council/wolverhampton","WWW.ARGOS.CO.UK","69.95","Ernest Bold Court","5310","Equipment - Purchase","05/12/2018"
"Wolverhampton City Council","http://opendatacommunities.org/id/metropolitan-district-council/wolverhampton","B & Q 1243","36.67","Ernest Bold Court","5211","Equipment - R & M","05/12/2018"
"Wolverhampton City Council","http://opendatacommunities.org/id/metropolitan-district-council/wolverhampton","Trainline","9.92","CIN/CP Social Work Unit - Area 8","4112","Section 17","05/12/2018"
"Wolverhampton City Council","http://opendatacommunities.org/id/metropolitan-district-council/wolverhampton","SPAR SIOP TANDDERWEN","300.76","Towers Outdoor Education Centre","5411","Provisions (Not for resale)","04/12/2018"
"Wolverhampton City Council","http://opendatacommunities.org/id/metropolitan-district-council/wolverhampton","HMV","4.98","Aldersley Leisure Village","5735","Equipment - Purchase","04/12/2018"
"Wolverhampton City Council","http://opendatacommunities.org/id/metropolitan-district-council/wolverhampton","ASDA GROCERIES ONLINE","74.43","Ernest Bold Court","5411","Provisions (Not for resale)","04/12/2018"
"Wolverhampton City Council","http://opendatacommunities.org/id/metropolitan-district-council/wolverhampton","Trainline","18.67","Youth Offending Team","4112","Public Transport","04/12/2018"
"Wolverhampton City Council","http://opendatacommunities.org/id/metropolitan-district-council/wolverhampton","WWW.SPARKENERGY.CO.UK","11.61","LAC Transitions Team","4900","Client Allowances","04/12/2018"
"Wolverhampton City Council","http://opendatacommunities.org/id/metropolitan-district-council/wolverhampton","SSE","36.37","LAC Transitions Team","4900","Client Allowances","04/12/2018"
"Wolverhampton City Council","http://opendatacommunities.org/id/metropolitan-district-council/wolverhampton","CARVER/WOLVERHAMPTON/L","21.64","Culwell Street Depot","5211","R&M - Departmental planned (external)","04/12/2018"
"Wolverhampton City Council","http://opendatacommunities.org/id/metropolitan-district-council/wolverhampton","WILKO RETAIL LIMIT","16.45","Service Wide","5722","Equipment - Purchase","04/12/2018"
"Wolverhampton City Council","http://opendatacommunities.org/id/metropolitan-district-council/wolverhampton","AMZN MKTP UK M09NH1XQ4","5.76","SEN Sensory Inclusion","5942","Equipment - Purchase","04/12/2018"
"Wolverhampton City Council","http://opendatacommunities.org/id/metropolitan-district-council/wolverhampton","Virgin Trains","68.90","Central Utilities to Recharge","4112","Public Transport","04/12/2018"
"Wolverhampton City Council","http://opendatacommunities.org/id/metropolitan-district-council/wolverhampton","HIGHSTREET VOCUHERS","203.50","IMPACT","8641","Educ Trips, Holidays, Outings, Activity","04/12/2018"
"Wolverhampton City Council","http://opendatacommunities.org/id/metropolitan-district-council/wolverhampton","AMZN MKTP UK M01UM2X54","31.11","Private Hire Vehicles","5942","Books","04/12/2018"
"Wolverhampton City Council","http://opendatacommunities.org/id/metropolitan-district-council/wolverhampton","Amazon Prime M03BV0XE4","6.66","CIN/CP Social Work Unit - Area 5","5968","Subscriptions","04/12/2018"
"Wolverhampton City Council","http://opendatacommunities.org/id/metropolitan-district-council/wolverhampton","Ar y gweill","7.08","Towers Outdoor Education Centre","5949","Equipment - Purchase","04/12/2018"
"Wolverhampton City Council","http://opendatacommunities.org/id/metropolitan-district-council/wolverhampton","WICKES","16.67","Learning Disabilities Management","5211","Equipment - R & M","04/12/2018"
"Wolverhampton City Council","http://opendatacommunities.org/id/metropolitan-district-council/wolverhampton","AMZN MKTP UK M04VA7GF4","122.85","Global Budgets","5942","Books","04/12/2018"
"Wolverhampton City Council","http://opendatacommunities.org/id/metropolitan-district-council/wolverhampton","Virgin Trains","577.10","Members Expenses","4112","Public Transport","04/12/2018"
"Wolverhampton City Council","http://opendatacommunities.org/id/metropolitan-district-council/wolverhampton","CITY OF WOLVERHAMPTON","35.00","Head of Service - CINCP","9399","Services - Fees and Charges","04/12/2018"
"Wolverhampton City Council","http://opendatacommunities.org/id/metropolitan-district-council/wolverhampton","Virgin Trains","40.90","Adoption and Residence Team & Allowances","4112","Public Transport","04/12/2018"
"Wolverhampton City Council","http://opendatacommunities.org/id/metropolitan-district-council/wolverhampton","CUMMINGS BROTHERS LOCK","27.00","EIP Locality 7","7399","Equipment - Purchase","04/12/2018"
"Wolverhampton City Council","http://opendatacommunities.org/id/metropolitan-district-council/wolverhampton","Virgin Trains","27.80","Planning","4112","Public Transport","04/12/2018"
"Wolverhampton City Council","http://opendatacommunities.org/id/metropolitan-district-council/wolverhampton","ALBRIGHTON FEEDS LIMIT","133.90","Parks - Ranger Service","5995","Materials","04/12/2018"
"Wolverhampton City Council","http://opendatacommunities.org/id/metropolitan-district-council/wolverhampton","Trainline","-6.00","CIN/CP Social Work Unit - Area 8","4112","Section 17","04/12/2018"
"Wolverhampton City Council","http://opendatacommunities.org/id/metropolitan-district-council/wolverhampton","Amazon.co.uk M05H91XN4","135.00","Mayoral Expenses","5969","Gratuities","04/12/2018"
"Wolverhampton City Council","http://opendatacommunities.org/id/metropolitan-district-council/wolverhampton","SAINSBURYS PFS (1340)","1.67","Mayoral Expenses","5541","Vehicle Maintenance - Repairs","03/12/2018"
"Wolverhampton City Council","http://opendatacommunities.org/id/metropolitan-district-council/wolverhampton","WWW.ARGOS.CO.UK","255.77","LAC Transitions Team","5310","Client Allowances","03/12/2018"
"Wolverhampton City Council","http://opendatacommunities.org/id/metropolitan-district-council/wolverhampton","WWW.WOLVERHAMPTON.GOV.","68.33","LAC Transitions Team","9399","Client Allowances","03/12/2018"
"Wolverhampton City Council","http://opendatacommunities.org/id/metropolitan-district-council/wolverhampton","WEST COAST TRAINS","10.00","Cemeteries","7523","Car Allowances","03/12/2018"
"Wolverhampton City Council","http://opendatacommunities.org/id/metropolitan-district-council/wolverhampton","TAXIPAY TAXI FARE","8.33","Cemeteries","4121","Client Transport","03/12/2018"
"Wolverhampton City Council","http://opendatacommunities.org/id/metropolitan-district-council/wolverhampton","JURYS INN NOTTINGHAM F","345.00","Adoption and Residence Team & Allowances","7011","Accommodation Costs","03/12/2018"
"Wolverhampton City Council","http://opendatacommunities.org/id/metropolitan-district-council/wolverhampton","PREMIER INN","74.50","LAC Team","3811","Accommodation Costs","03/12/2018"
"Wolverhampton City Council","http://opendatacommunities.org/id/metropolitan-district-council/wolverhampton","Virgin Trains","119.80","LAC Team","4112","Public Transport","03/12/2018"
"Wolverhampton City Council","http://opendatacommunities.org/id/metropolitan-district-council/wolverhampton","Amazon.co.uk M06M38PS4","70.71","Strategic ICTS (ICT Serv Budget)","5969","Equipment - Purchase","03/12/2018"
"Wolverhampton City Council","http://opendatacommunities.org/id/metropolitan-district-council/wolverhampton","PAYPAL  LAMICROGROU","90.00","Strategic ICTS (ICT Serv Budget)","5732","Equipment - Purchase","03/12/2018"
"Wolverhampton City Council","http://opendatacommunities.org/id/metropolitan-district-council/wolverhampton","ASDA GROCERIES ONLINE","-1.01","Upper Pendeford Farm Childrens Home","5411","Provisions (Not for resale)","03/12/2018"
"Wolverhampton City Council","http://opendatacommunities.org/id/metropolitan-district-council/wolverhampton","MAGSUBCRIPTIONS COM","204.00","LAC Education Team (LACE)","5968","Subscriptions","03/12/2018"
"Wolverhampton City Council","http://opendatacommunities.org/id/metropolitan-district-council/wolverhampton","ASDA GROCERIES ONLINE","201.20","Upper Pendeford Farm Childrens Home","5411","Provisions (Not for resale)","03/12/2018"
"Wolverhampton City Council","http://opendatacommunities.org/id/metropolitan-district-council/wolverhampton","ASDA GROCERIES ONLINE","-0.11","Creative Studies Delivery Area","5411","Provisions (Not for resale)","03/12/2018"
"Wolverhampton City Council","http://opendatacommunities.org/id/metropolitan-district-council/wolverhampton","LEARNING AND WORK INST","140.00","AES Staff Development","8398","Training Expenses","03/12/2018"
"Wolverhampton City Council","http://opendatacommunities.org/id/metropolitan-district-council/wolverhampton","ASDA GROCERIES ONLINE","34.60","Creative Studies Delivery Area","5411","Provisions (Not for resale)","03/12/2018"
"Wolverhampton City Council","http://opendatacommunities.org/id/metropolitan-district-council/wolverhampton","Virgin Trains","93.60","Strategic Asset Management - General","4112","Public Transport","03/12/2018"
"Wolverhampton City Council","http://opendatacommunities.org/id/metropolitan-district-council/wolverhampton","POST OFFICE COUNTER","335.00","Vulnerable Young Persons Team","9402","Comms - Postage","03/12/2018"
"Wolverhampton City Council","http://opendatacommunities.org/id/metropolitan-district-council/wolverhampton","AMZN MKTP UK M099S50X4","22.40","Community Enablement","5942","Equipment - Purchase","03/12/2018"
"Wolverhampton City Council","http://opendatacommunities.org/id/metropolitan-district-council/wolverhampton","Central Taxis Limited","11.08","LAC Team","4121","Client Transport","03/12/2018"
"Wolverhampton City Council","http://opendatacommunities.org/id/metropolitan-district-council/wolverhampton","Central Taxis Limited","11.08","LAC Team","4121","Client Transport","03/12/2018"
"Wolverhampton City Council","http://opendatacommunities.org/id/metropolitan-district-council/wolverhampton","Central Taxis Limited","11.00","LAC Team","4121","Client Transport","03/12/2018"
"Wolverhampton City Council","http://opendatacommunities.org/id/metropolitan-district-council/wolverhampton","Central Taxis Limited","8.15","LAC Team","4121","Client Transport","03/12/2018"
"Wolverhampton City Council","http://opendatacommunities.org/id/metropolitan-district-council/wolverhampton","AMZN MKTP UK M065N4P54","57.90","SEN Sensory Inclusion","5942","Equipment - Purchase","03/12/2018"
"Wolverhampton City Council","http://opendatacommunities.org/id/metropolitan-district-council/wolverhampton","AMZN MKTP UK M06HB31R4","91.19","Global Budgets","5942","Books","03/12/2018"
"Wolverhampton City Council","http://opendatacommunities.org/id/metropolitan-district-council/wolverhampton","CardtronicsUK","60.00","EIP Locality 3","6011","Grant Payments","03/12/2018"
"Wolverhampton City Council","http://opendatacommunities.org/id/metropolitan-district-council/wolverhampton","WICKES","25.40","Specialist Support Service - North","5211","Equipment - R & M","03/12/2018"
"Wolverhampton City Council","http://opendatacommunities.org/id/metropolitan-district-council/wolverhampton","COVE HOUSE","90.00","LAC Team","7011","Services - Supplies & Services to users","03/12/2018"
"Wolverhampton City Council","http://opendatacommunities.org/id/metropolitan-district-council/wolverhampton","WP-CENTRAL TAXIS L","104.40","LAC Team","4121","Client Transport","03/12/2018"
"Wolverhampton City Council","http://opendatacommunities.org/id/metropolitan-district-council/wolverhampton","B & Q 1243","21.00","Education Catering - General Overheads","5211","Materials","03/12/2018"
"Wolverhampton City Council","http://opendatacommunities.org/id/metropolitan-district-council/wolverhampton","ASHLEY ELEC WLSRS LTD","8.00","Education Catering - General Overheads","7629","R4007","03/12/2018"
"Wolverhampton City Council","http://opendatacommunities.org/id/metropolitan-district-council/wolverhampton","LOYD 37 CHURCH STREET","200.00","Duke Street Bungalows","6011","Provisions (Not for resale)","03/12/2018"
"Wolverhampton City Council","http://opendatacommunities.org/id/metropolitan-district-council/wolverhampton","INSTIT OF OCCPTNL SAFE","160.00","Central Training","8699","Training Expenses","03/12/2018"
"Wolverhampton City Council","http://opendatacommunities.org/id/metropolitan-district-council/wolverhampton","ASDA GROCERIES ONLINE","50.03","Ernest Bold Court","5411","Provisions (Not for resale)","03/12/2018"
"Wolverhampton City Council","http://opendatacommunities.org/id/metropolitan-district-council/wolverhampton","Amazon.co.uk M059R00M4","14.85","Music Support Team","5969","Equipment - R & M","03/12/2018"
"Wolverhampton City Council","http://opendatacommunities.org/id/metropolitan-district-council/wolverhampton","Amazon.co.uk M058D6EV4","34.65","Music Support Team","5969","Equipment - R & M","03/12/2018"
"Wolverhampton City Council","http://opendatacommunities.org/id/metropolitan-district-council/wolverhampton","Amazon.co.uk M05ND80E4","9.70","Music Support Team","5969","Equipment - R & M","03/12/2018"
"Wolverhampton City Council","http://opendatacommunities.org/id/metropolitan-district-council/wolverhampton","WWW.STUDIO-MUSIC.C","84.85","Music Support Team","2741","Equipment - R & M","03/12/2018"
"Wolverhampton City Council","http://opendatacommunities.org/id/metropolitan-district-council/wolverhampton","WICKES","105.83","Northicote Farm","5211","Equipment - Purchase","03/12/2018"
"Wolverhampton City Council","http://opendatacommunities.org/id/metropolitan-district-council/wolverhampton","MACHINE MART LTD","79.96","Northicote Farm","5722","Equipment - Purchase","03/12/2018"
"Wolverhampton City Council","http://opendatacommunities.org/id/metropolitan-district-council/wolverhampton","DULUX DECORATOR CENTRE","489.64","Contemporary Gallery","5198","Materials","03/12/2018"
"Wolverhampton City Council","http://opendatacommunities.org/id/metropolitan-district-council/wolverhampton","MAPLE MOTOR SERVICES L","-166.67","Visitor Economy - Development","7512","Car Allowances","03/12/2018"
"Wolverhampton City Council","http://opendatacommunities.org/id/metropolitan-district-council/wolverhampton","FACEBK  KSYG7HNG52","148.57","Visitor Economy - Development","7311","Marketing \ Non-staff advertising","03/12/2018"
"Wolverhampton City Council","http://opendatacommunities.org/id/metropolitan-district-council/wolverhampton","WWW.ARGOS.CO.UK","580.89","Head of Service Specialist Int Support","5310","Equipment - Purchase","03/12/2018"
"Wolverhampton City Council","http://opendatacommunities.org/id/metropolitan-district-council/wolverhampton","WWW.ARGOS.CO.UK","249.99","Head of Service Specialist Int Support","5310","Equipment - Purchase","03/12/2018"
"Wolverhampton City Council","http://opendatacommunities.org/id/metropolitan-district-council/wolverhampton","ARGOS RETAIL GROUP","90.00","Head of Service Specialist Int Support","5310","Equipment - Purchase","03/12/2018"
"Wolverhampton City Council","http://opendatacommunities.org/id/metropolitan-district-council/wolverhampton","DUNELM ONLINE ORDER","556.00","Head of Service Specialist Int Support","5714","Equipment - Purchase","03/12/2018"
"Wolverhampton City Council","http://opendatacommunities.org/id/metropolitan-district-council/wolverhampton","BUYITDIRECT CO UK","86.98","Head of Service Specialist Int Support","5734","Equipment - Purchase","03/12/2018"
"Wolverhampton City Council","http://opendatacommunities.org/id/metropolitan-district-council/wolverhampton","WWW.CATERING-APPLIANCE","41.93","Head of Service Specialist Int Support","5046","Equipment - Purchase","03/12/2018"
"Wolverhampton City Council","http://opendatacommunities.org/id/metropolitan-district-council/wolverhampton","FLOWERS IN THE CITY","20.83","Mayoral Expenses","5992","Hospitality","03/12/2018"
"Wolverhampton City Council","http://opendatacommunities.org/id/metropolitan-district-council/wolverhampton","FACEBK  K9CEUGJA82","136.25","WV Active Marketing","7311","Marketing \ Non-staff advertising","03/12/2018"
"Wolverhampton City Council","http://opendatacommunities.org/id/metropolitan-district-council/wolverhampton","WWW.MYTAKEAWAY.COM","20.82","Headstart - Young People Engagement","5814","Educ Trips, Holidays, Outings, Activity","03/12/2018"
"Wolverhampton City Council","http://opendatacommunities.org/id/metropolitan-district-council/wolverhampton","CardtronicsUK","100.00","B-Safe","6011","Catering","03/12/2018"
"Wolverhampton City Council","http://opendatacommunities.org/id/metropolitan-district-council/wolverhampton","TESCO STORES 6727","62.50","Headstart - Young People Engagement","5411","Educ Trips, Holidays, Outings, Activity","03/12/2018"
"Wolverhampton City Council","http://opendatacommunities.org/id/metropolitan-district-council/wolverhampton","TESCO STORES 6727","75.00","Headstart - Young People Engagement","5411","Educ Trips, Holidays, Outings, Activity","03/12/2018"
"Wolverhampton City Council","http://opendatacommunities.org/id/metropolitan-district-council/wolverhampton","AMZN MKTP UK M01HL4E64","29.94","HR Advice","5942","Comms - Mobile Telephones","03/12/2018"
"Wolverhampton City Council","http://opendatacommunities.org/id/metropolitan-district-council/wolverhampton","CURRYS S/S","125.00","Long Service Awards","5732","Gratuities","03/12/2018"
